{"text_format":"1","workbook":"xlsx","n_sheets":4,"sheets":["LISTE DES TIREURS","FEUILLE D'INSCRIPTION","MODE D'EMPLOI","Tireurs"],"not_rendered":{"charts":0,"images":3,"macros":1,"external_links":0,"defined_names":3,"comments":0,"pivot_tables":0},"unopened":[],"bounds":{"document_bytes":16777216,"sheet_cells":100000,"rows_first":2000,"rows_last":500,"rows_between":2000,"halvings":0,"cell_chars":16384,"cell_head_chars":4096},"cells_cut":0,"cells_raw":0,"read":"whole","date_system":"1900"}

{"sheet":"LISTE DES TIREURS","index":0,"n_rows":252,"n_cols":11,"rows_kept":252,"cut":false,"hidden":false,"merged":[]}
[]
[null,"TIR INTER-USINES","ANNÉE",{"$f":"INDEX('LISTE DES TIREURS'!J$8:J$31,'LISTE DES TIREURS'!K8)","v":2022}]
[null,null,null,null,null,{"$f":"D2","v":2022}]
[]
[null,"LISTE DES TIREURS","TOUT EN MAJUSCULE"]
[]
[null,"NOM PRÉNOM","AN (1950)","ARME - WAFFE",null,null,"NOUVEAU NOM DE GROUPE"]
[null,null,null,null,null,null,null,null,null,2017,6]
[null,null,null,null,8,1,"INDIVIDUEL",null,null,2018]
[null,null,null,null,null,null,"BIFFE LMB",null,null,2019]
[null,null,null,null,1,null,"LA BERRA LMB",null,null,2020]
[null,null,null,null,null,null,"LA CHIA LMB",null,null,2021]
[null,null,null,null,"A",null,"LA DENT DE BROC LMB",null,null,2022]
[null,null,null,null,"B",null,"LA DENT DE LYS LMB",null,null,2023]
[null,null,null,null,"C",null,"LA DENT DU BURGO LMB",null,null,2024]
[null,null,null,null,null,null,"LA DENT DU CHAMOIS LMB",null,null,2025]
[null,null,null,null,null,null,"LA HOCHMATT LMB",null,null,2026]
[null,null,null,null,null,null,"LA VUDALLA LMB",null,null,2027]
[null,null,null,null,null,null,"LE COUSIMBERT LMB",null,null,2028]
[null,null,null,null,null,null,"LE KAISEREGG LMB",null,null,2029]
[null,null,null,null,null,null,"LE MOLESON LMB",null,null,2030]
[null,null,null,null,null,null,"LE VANIL CARRE LMB",null,null,2031]
[null,null,null,null,null,null,"LE VANIL DE L'ECRI LMB",null,null,2032]
[null,null,null,null,null,null,"LE VANIL NOIR LMB",null,null,2033]
[null,null,null,null,null,null,"LES GASTLOSEN LMB",null,null,2034]
[null,null,null,null,null,null,"LES MERLAS LMB",null,null,2035]
[null,null,null,null,null,null,"LES PORTES LMB",null,null,2036]
[null,null,null,null,null,null,"POINTE DE PARAY LMB",null,null,2037]
[null,null,null,null,null,null,"DENT DU CHAMOIS LMB",null,null,2038]
[null,null,null,null,null,null,null,null,null,2039]
[null,null,null,null,null,null,null,null,null,2040]
[]
[]
[]
[]
[]
[]
[]
[]
[]
[]
[]
[]
[]
[]
[]
[]
[]
[]
[]
[]
[]
[]
[]
[]
[]
[]
[]
[]
[]
[]
[]
[]
[]
[]
[]
[]
[]
[]
[]
[]
[]
[]
[]
[1,"AKCOELTEKIN NAMIK",1979,{"$f":"INDEX('LISTE DES TIREURS'!E$83:E$85,'LISTE DES TIREURS'!F83)","v":"F90"}]
[2,"AKROUT SAMIR",1974,{"$f":"INDEX('LISTE DES TIREURS'!E$83:E$85,'LISTE DES TIREURS'!F84)","v":"F90"}]
[3,"ALTINIER BENOIT",1983,{"$f":"INDEX('LISTE DES TIREURS'!E$83:E$85,'LISTE DES TIREURS'!F85)","v":"F90"}]
[4,"ANDRE BENJAMIN",1988,{"$f":"INDEX('LISTE DES TIREURS'!E$83:E$85,'LISTE DES TIREURS'!F86)","v":"F90"}]
[5,"ARIAS JOSE",1971,{"$f":"INDEX('LISTE DES TIREURS'!E$83:E$85,'LISTE DES TIREURS'!F87)","v":"F90"}]
[6,"ASLAN YUNUS EMRE",1996,{"$f":"INDEX('LISTE DES TIREURS'!E$83:E$85,'LISTE DES TIREURS'!F88)","v":"F90"}]
[7,"BASSET CHRISTIAN",1956,{"$f":"INDEX('LISTE DES TIREURS'!E$83:E$85,'LISTE DES TIREURS'!F89)","v":"F57 / M"}]
[8,"BATTEL MERLE",1986,{"$f":"INDEX('LISTE DES TIREURS'!E$83:E$85,'LISTE DES TIREURS'!F90)","v":"F90"}]
[9,"BAUDOIS JULIEN",1985,{"$f":"INDEX('LISTE DES TIREURS'!E$83:E$85,'LISTE DES TIREURS'!F91)","v":"F90"},null,2]
[10,"BEAUD CLAUDE",1957,{"$f":"INDEX('LISTE DES TIREURS'!E$83:E$85,'LISTE DES TIREURS'!F92)","v":"F90"},"F90",2]
[11,"BENOIT JEAN-ROMAIN",1970,{"$f":"INDEX('LISTE DES TIREURS'!E$83:E$85,'LISTE DES TIREURS'!F93)","v":"F90"},"F57 / M",2]
[12,"BERGER JEAN-PHILIPPE",1975,{"$f":"INDEX('LISTE DES TIREURS'!E$83:E$85,'LISTE DES TIREURS'!F94)","v":"F90"},null,2]
[13,"BESIM DEMIRI",1981,{"$f":"INDEX('LISTE DES TIREURS'!E$83:E$85,'LISTE DES TIREURS'!F95)","v":"F90"},null,2]
[14,"BLANC MARCEL",1956,{"$f":"INDEX('LISTE DES TIREURS'!E$83:E$85,'LISTE DES TIREURS'!F96)","v":"F90"},null,2]
[15,"BOICHAT MICHEL",1952,{"$f":"INDEX('LISTE DES TIREURS'!E$83:E$85,'LISTE DES TIREURS'!F97)","v":"F90"},null,3]
[16,"BORCARD GILLES",0,{"$f":"INDEX('LISTE DES TIREURS'!E$83:E$85,'LISTE DES TIREURS'!F98)","v":"F90"},null,2]
[17,"CHALABI DAVID",1996,{"$f":"INDEX('LISTE DES TIREURS'!E$83:E$85,'LISTE DES TIREURS'!F99)","v":"F90"},null,2]
[18,"CHAMBELLAND ESTEBAN",1987,{"$f":"INDEX('LISTE DES TIREURS'!E$83:E$85,'LISTE DES TIREURS'!F100)","v":"F90"},null,2]
[19,"CHATAGNY GAETAN",1975,{"$f":"INDEX('LISTE DES TIREURS'!E$83:E$85,'LISTE DES TIREURS'!F101)","v":"F90"},null,2]
[20,"COLLEMICHE GAELLE ",1983,{"$f":"INDEX('LISTE DES TIREURS'!E$83:E$85,'LISTE DES TIREURS'!F102)","v":"F90"},null,2]
[21,"CORBINELLI GIOVANNI",1978,{"$f":"INDEX('LISTE DES TIREURS'!E$83:E$85,'LISTE DES TIREURS'!F103)","v":"F90"},null,2]
[22,"CORBOZ GABRIEL",1986,{"$f":"INDEX('LISTE DES TIREURS'!E$83:E$85,'LISTE DES TIREURS'!F104)","v":"F90"},null,2]
[23,"COSTA SEBASTIEN",1972,{"$f":"INDEX('LISTE DES TIREURS'!E$83:E$85,'LISTE DES TIREURS'!F105)","v":"F90"},null,2]
[24,"COUSIN ANTHONY",1998,{"$f":"INDEX('LISTE DES TIREURS'!E$83:E$85,'LISTE DES TIREURS'!F106)","v":"F90"},null,2]
[25,"CURRAT JEAN-MICHEL",1962,{"$f":"INDEX('LISTE DES TIREURS'!E$83:E$85,'LISTE DES TIREURS'!F107)","v":"F90"},null,2]
[26,"DA SILVA REIS DANIEL",1992,{"$f":"INDEX('LISTE DES TIREURS'!E$83:E$85,'LISTE DES TIREURS'!F108)","v":"F90"},null,2]
[27,"DEFFERARD VALENTIN",1992,{"$f":"INDEX('LISTE DES TIREURS'!E$83:E$85,'LISTE DES TIREURS'!F109)","v":"F90"},null,2]
[28,"DESPONT JOEL",1975,{"$f":"INDEX('LISTE DES TIREURS'!E$83:E$85,'LISTE DES TIREURS'!F110)","v":"F90"},null,2]
[29,"DJONI SHEFIT",1988,{"$f":"INDEX('LISTE DES TIREURS'!E$83:E$85,'LISTE DES TIREURS'!F111)","v":"F90"},null,2]
[30,"DOBROES TEXEIRA NUNO",1979,{"$f":"INDEX('LISTE DES TIREURS'!E$83:E$85,'LISTE DES TIREURS'!F112)","v":"F90"},null,2]
[31,"DUBEY VINCENT",1982,{"$f":"INDEX('LISTE DES TIREURS'!E$83:E$85,'LISTE DES TIREURS'!F113)","v":"F90"},null,2]
[32,"DUPONT MICHEL",1969,{"$f":"INDEX('LISTE DES TIREURS'!E$83:E$85,'LISTE DES TIREURS'!F114)","v":"F90"},null,2]
[33,"EBERHARD BERNARD",0,{"$f":"INDEX('LISTE DES TIREURS'!E$83:E$85,'LISTE DES TIREURS'!F115)","v":"F90"},null,2]
[34,"ELISEEV OLEG",1984,{"$f":"INDEX('LISTE DES TIREURS'!E$83:E$85,'LISTE DES TIREURS'!F116)","v":"F90"},null,2]
[35,"ESTREMADOYRO JOSE MOISES",1983,{"$f":"INDEX('LISTE DES TIREURS'!E$83:E$85,'LISTE DES TIREURS'!F117)","v":"F90"},null,2]
[36,"FENELON ROBIN",1989,{"$f":"INDEX('LISTE DES TIREURS'!E$83:E$85,'LISTE DES TIREURS'!F118)","v":"F90"},null,2]
[37,"FERRARI WILLIAM",1970,{"$f":"INDEX('LISTE DES TIREURS'!E$83:E$85,'LISTE DES TIREURS'!F119)","v":"F90"},null,2]
[38,"FONGANG TEMGOUA ALAIN",1974,{"$f":"INDEX('LISTE DES TIREURS'!E$83:E$85,'LISTE DES TIREURS'!F120)","v":"F90"},null,2]
[39,"FUGA REXHEP",1993,{"$f":"INDEX('LISTE DES TIREURS'!E$83:E$85,'LISTE DES TIREURS'!F121)","v":"F90"},null,2]
[40,"GACHOUD VINCENT",1991,{"$f":"INDEX('LISTE DES TIREURS'!E$83:E$85,'LISTE DES TIREURS'!F122)","v":"F57 / M"},null,2]
[41,"GAGO DA SILVA CRUZ RUI JORGE",1973,{"$f":"INDEX('LISTE DES TIREURS'!E$83:E$85,'LISTE DES TIREURS'!F123)","v":"F90"},null,2]
[42,"GALLAND ANTOINE",1986,{"$f":"INDEX('LISTE DES TIREURS'!E$83:E$85,'LISTE DES TIREURS'!F124)","v":"F90"},null,2]
[43,"GALLAND GILLES",1956,{"$f":"INDEX('LISTE DES TIREURS'!E$83:E$85,'LISTE DES TIREURS'!F125)","v":"F90"},null,2]
[44,"GALLAND MAXIME",1987,{"$f":"INDEX('LISTE DES TIREURS'!E$83:E$85,'LISTE DES TIREURS'!F126)","v":"F57 / M"},null,2]
[45,"GALLAND STELMA",1986,{"$f":"INDEX('LISTE DES TIREURS'!E$83:E$85,'LISTE DES TIREURS'!F127)","v":"F90"},null,2]
[46,"GENTILE NICOLAS",1987,{"$f":"INDEX('LISTE DES TIREURS'!E$83:E$85,'LISTE DES TIREURS'!F128)","v":"F90"},null,2]
[47,"GLORIANT ANTOINE",1988,{"$f":"INDEX('LISTE DES TIREURS'!E$83:E$85,'LISTE DES TIREURS'!F129)","v":"F90"},null,2]
[48,"GONCALVES DUARTE SILVIO MIGUEL",1980,{"$f":"INDEX('LISTE DES TIREURS'!E$83:E$85,'LISTE DES TIREURS'!F130)","v":"F90"},null,3]
[49,"GRANGIER PIERRE",1949,{"$f":"INDEX('LISTE DES TIREURS'!E$83:E$85,'LISTE DES TIREURS'!F131)","v":"F90"},null,2]
[50,"HEINZL MICKAEL",1972,{"$f":"INDEX('LISTE DES TIREURS'!E$83:E$85,'LISTE DES TIREURS'!F132)","v":"F90"},null,2]
[51,"HENRY REGIS",1989,{"$f":"INDEX('LISTE DES TIREURS'!E$83:E$85,'LISTE DES TIREURS'!F$133)","v":"F90"},null,2]
[52,"HURUGLICA ARBER",1993,{"$f":"INDEX('LISTE DES TIREURS'!E$83:E$85,'LISTE DES TIREURS'!F134)","v":"F90"},null,3]
[53,"IORFIDA GABRIEL",1994,{"$f":"INDEX('LISTE DES TIREURS'!E$83:E$85,'LISTE DES TIREURS'!F135)","v":"F90"},null,2]
[54,"JANUZAJ ZENULLAH",1990,{"$f":"INDEX('LISTE DES TIREURS'!E$83:E$85,'LISTE DES TIREURS'!F136)","v":"F90"},null,2]
[55,"JUSUF MUAZ ",1985,{"$f":"INDEX('LISTE DES TIREURS'!E$83:E$85,'LISTE DES TIREURS'!F137)","v":"F90"},null,2]
[56,"KENFAR AMAR",1975,{"$f":"INDEX('LISTE DES TIREURS'!E$83:E$85,'LISTE DES TIREURS'!F138)","v":"F90"},null,2]
[57,"KOLLY BERNARD",1959,{"$f":"INDEX('LISTE DES TIREURS'!E$83:E$85,'LISTE DES TIREURS'!F139)","v":"F57 / M"},null,2]
[58,"LARBI SAMUEL",1990,{"$f":"INDEX('LISTE DES TIREURS'!E$83:E$85,'LISTE DES TIREURS'!F140)","v":"F57 / M"},null,2]
[59,"LEONARD DAMIEN",1993,{"$f":"INDEX('LISTE DES TIREURS'!E$83:E$85,'LISTE DES TIREURS'!F141)","v":"F90"},null,2]
[60,"LETANG LUDOVIC",0,{"$f":"INDEX('LISTE DES TIREURS'!E$83:E$85,'LISTE DES TIREURS'!F142)","v":"F90"},null,2]
[61,"MAEMMERLEN THIBAULT",0,{"$f":"INDEX('LISTE DES TIREURS'!E$83:E$85,'LISTE DES TIREURS'!F143)","v":"F90"},null,2]
[62,"MARCHON PHILIPPE",1962,{"$f":"INDEX('LISTE DES TIREURS'!E$83:E$85,'LISTE DES TIREURS'!F144)","v":"F90"},null,2]
[63,"MARTIN JEAN-PIERRE",1969,{"$f":"INDEX('LISTE DES TIREURS'!E$83:E$85,'LISTE DES TIREURS'!F145)","v":"F57 / M"},null,2]
[64,"MARTINS MARQUES FILIPE",1986,{"$f":"INDEX('LISTE DES TIREURS'!E$83:E$85,'LISTE DES TIREURS'!F146)","v":"F90"},null,2]
[65,"MASTROGUILIO ANTONIO",1993,{"$f":"INDEX('LISTE DES TIREURS'!E$83:E$85,'LISTE DES TIREURS'!F147)","v":"F90"},null,3]
[66,"MASTROGUILIO GIUSEPPE",1995,{"$f":"INDEX('LISTE DES TIREURS'!E$83:E$85,'LISTE DES TIREURS'!F148)","v":"F90"},null,3]
[67,"MEIER MAXIMILIANO",1987,{"$f":"INDEX('LISTE DES TIREURS'!E$83:E$85,'LISTE DES TIREURS'!F149)","v":"F90"},null,2]
[68,"MENDES DE BESSA JOSE CARLOS",1993,{"$f":"INDEX('LISTE DES TIREURS'!E$83:E$85,'LISTE DES TIREURS'!F150)","v":"F90"},null,2]
[69,"MENOUD SEBASTIEN",1974,{"$f":"INDEX('LISTE DES TIREURS'!E$83:E$85,'LISTE DES TIREURS'!F151)","v":"F57 / M"},null,2]
[70,"MENOUD SONJA",1952,{"$f":"INDEX('LISTE DES TIREURS'!E$83:E$85,'LISTE DES TIREURS'!F152)","v":"F90"},null,2]
[71,"MONNEY ERIC",1995,{"$f":"INDEX('LISTE DES TIREURS'!E$83:E$85,'LISTE DES TIREURS'!F153)","v":"F90"},null,3]
[72,"MORENO MARK",1985,{"$f":"INDEX('LISTE DES TIREURS'!E$83:E$85,'LISTE DES TIREURS'!F154)","v":"F90"},null,2]
[73,"MORISSET ALEXANDRE",1974,{"$f":"INDEX('LISTE DES TIREURS'!E$83:E$85,'LISTE DES TIREURS'!F155)","v":"F90"},null,2]
[74,"MOURA OLIVIER",1965,{"$f":"INDEX('LISTE DES TIREURS'!E$83:E$85,'LISTE DES TIREURS'!F156)","v":"F90"},null,2]
[75,"NJOH JEAN-ROBERT",1980,{"$f":"INDEX('LISTE DES TIREURS'!E$83:E$85,'LISTE DES TIREURS'!F157)","v":"F90"},null,2]
[76,"NUSSBAUMER ANTOINE ",1983,{"$f":"INDEX('LISTE DES TIREURS'!E$83:E$85,'LISTE DES TIREURS'!F158)","v":"F90"},null,2]
[77,"PAUCHARD BERNARD",1990,{"$f":"INDEX('LISTE DES TIREURS'!E$83:E$85,'LISTE DES TIREURS'!F159)","v":"F90"},null,3]
[78,"PETITJEAN BRICE",1990,{"$f":"INDEX('LISTE DES TIREURS'!E$83:E$85,'LISTE DES TIREURS'!F160)","v":"F90"},null,2]
[79,"PICCAND VINCENT",2000,{"$f":"INDEX('LISTE DES TIREURS'!E$83:E$85,'LISTE DES TIREURS'!F161)","v":"F90"},null,2]
[80,"PREUHS JEAN-FRANCOIS ",1975,{"$f":"INDEX('LISTE DES TIREURS'!E$83:E$85,'LISTE DES TIREURS'!F162)","v":"F90"},null,2]
[81,"PUPIN FLORIAN",1984,{"$f":"INDEX('LISTE DES TIREURS'!E$83:E$85,'LISTE DES TIREURS'!F163)","v":"F90"},null,2]
[82,"RABOUD CLAUDINE",1981,{"$f":"INDEX('LISTE DES TIREURS'!E$83:E$85,'LISTE DES TIREURS'!F164)","v":"F90"},null,2]
[83,"RAMADANI REFIK",0,{"$f":"INDEX('LISTE DES TIREURS'!E$83:E$85,'LISTE DES TIREURS'!F165)","v":"F90"},null,2]
[84,"REYMOND MAÏC",1979,{"$f":"INDEX('LISTE DES TIREURS'!E$83:E$85,'LISTE DES TIREURS'!F166)","v":"F90"},null,2]
[85,"RIZZO GIOVANNI",1976,{"$f":"INDEX('LISTE DES TIREURS'!E$83:E$85,'LISTE DES TIREURS'!F167)","v":"F90"},null,2]
[86,"ROJAS OLMOS MAURICIO JASMANI",1981,{"$f":"INDEX('LISTE DES TIREURS'!E$83:E$85,'LISTE DES TIREURS'!F168)","v":"F90"},null,2]
[87,"ROUX STEFAN",1964,{"$f":"INDEX('LISTE DES TIREURS'!E$83:E$85,'LISTE DES TIREURS'!F169)","v":"F90"},null,2]
[88,"SCHNARRENBERGER ELIO",1991,{"$f":"INDEX('LISTE DES TIREURS'!E$83:E$85,'LISTE DES TIREURS'!F170)","v":"F90"},null,2]
[89,"SOULIER PIERRE",1989,{"$f":"INDEX('LISTE DES TIREURS'!E$83:E$85,'LISTE DES TIREURS'!F171)","v":"F90"},null,2]
[90,"SPAETH GUILLAUME",1995,{"$f":"INDEX('LISTE DES TIREURS'!E$83:E$85,'LISTE DES TIREURS'!F172)","v":"F90"},null,2]
[91,"SPINELLI SOPHIE",1980,{"$f":"INDEX('LISTE DES TIREURS'!E$83:E$85,'LISTE DES TIREURS'!F173)","v":"F90"},null,2]
[92,"STAEMPFLI MATTHIEU",0,{"$f":"INDEX('LISTE DES TIREURS'!E$83:E$85,'LISTE DES TIREURS'!F174)","v":"F90"},null,2]
[93,"STEHLIN MATHIEU",1994,{"$f":"INDEX('LISTE DES TIREURS'!E$83:E$85,'LISTE DES TIREURS'!F175)","v":"F90"},null,2]
[94,"TEIXEIRA VICTOR",1983,{"$f":"INDEX('LISTE DES TIREURS'!E$83:E$85,'LISTE DES TIREURS'!F176)","v":"F90"},null,2]
[95,"TERRIER ANTOINE",1995,{"$f":"INDEX('LISTE DES TIREURS'!E$83:E$85,'LISTE DES TIREURS'!F177)","v":"F90"},null,2]
[96,"THARMANANDA THARMANISHANTH",1990,{"$f":"INDEX('LISTE DES TIREURS'!E$83:E$85,'LISTE DES TIREURS'!F178)","v":"F90"},null,2]
[97,"TOPOROWICZ CIORCERO ELISSON",1989,{"$f":"INDEX('LISTE DES TIREURS'!E$83:E$85,'LISTE DES TIREURS'!F179)","v":"F90"},null,2]
[98,"TOUCHEFEU THIBAUT",1986,{"$f":"INDEX('LISTE DES TIREURS'!E$83:E$85,'LISTE DES TIREURS'!F180)","v":"F90"},null,2]
[99,"TURRIAN JEAN-DANIEL",1988,{"$f":"INDEX('LISTE DES TIREURS'!E$83:E$85,'LISTE DES TIREURS'!F181)","v":"F90"},null,2]
[100,"TUSHI BEKIM",1986,{"$f":"INDEX('LISTE DES TIREURS'!E$83:E$85,'LISTE DES TIREURS'!F182)","v":"F90"},null,2]
[101,"ÜNALAN ÜMIT",1981,{"$f":"INDEX('LISTE DES TIREURS'!E$83:E$85,'LISTE DES TIREURS'!F183)","v":"F90"},null,2]
[102,"UTZ MARTIAL",1971,{"$f":"INDEX('LISTE DES TIREURS'!E$83:E$85,'LISTE DES TIREURS'!F184)","v":"F90"},null,2]
[103,"VIDEIRA LUIS",1989,{"$f":"INDEX('LISTE DES TIREURS'!E$83:E$85,'LISTE DES TIREURS'!F185)","v":"F90"},null,2]
[104,"VIELLE VINCENT",1992,{"$f":"INDEX('LISTE DES TIREURS'!E$83:E$85,'LISTE DES TIREURS'!F186)","v":"F90"},null,2]
[105,"WALCH JORIS",1989,{"$f":"INDEX('LISTE DES TIREURS'!E$83:E$85,'LISTE DES TIREURS'!F187)","v":"F90"},null,2]
[106,"WESEMANN KNUT",1985,{"$f":"INDEX('LISTE DES TIREURS'!E$83:E$85,'LISTE DES TIREURS'!F188)","v":"F90"},null,2]
[107,"WINKLER ANDREAS",1982,{"$f":"INDEX('LISTE DES TIREURS'!E$83:E$85,'LISTE DES TIREURS'!F189)","v":"F90"},null,2]
[108,"WINKWORTH JAMES",1996,{"$f":"INDEX('LISTE DES TIREURS'!E$83:E$85,'LISTE DES TIREURS'!F190)","v":"F90"},null,2]
[109,"WIRTHS STEFAN",1984,{"$f":"INDEX('LISTE DES TIREURS'!E$83:E$85,'LISTE DES TIREURS'!F191)","v":"F90"},null,2]
[110,"WYSSMUELLER ALAIN",1992,{"$f":"INDEX('LISTE DES TIREURS'!E$83:E$85,'LISTE DES TIREURS'!F192)","v":"F90"},null,2]
[111,"YASYN SAID",1989,{"$f":"INDEX('LISTE DES TIREURS'!E$83:E$85,'LISTE DES TIREURS'!F193)","v":"F90"},null,2]
[112,"ZBINDEN CAROLE",1979,{"$f":"INDEX('LISTE DES TIREURS'!E$83:E$85,'LISTE DES TIREURS'!F194)","v":"F90"},null,2]
[113,"ZIBOUCHE FARID",1988,{"$f":"INDEX('LISTE DES TIREURS'!E$83:E$85,'LISTE DES TIREURS'!F195)","v":"F90"},null,2]
[114,"ZUENDORF ECKEHARD",1970,{"$f":"INDEX('LISTE DES TIREURS'!E$83:E$85,'LISTE DES TIREURS'!F196)","v":"F90"},null,2]
[115,null,null,{"$f":"INDEX('LISTE DES TIREURS'!E$83:E$85,'LISTE DES TIREURS'!F197)","v":0},null,2]
[116,null,null,{"$f":"INDEX('LISTE DES TIREURS'!E$83:E$85,'LISTE DES TIREURS'!F198)","v":0},null,2]
[117,null,null,{"$f":"INDEX('LISTE DES TIREURS'!E$83:E$85,'LISTE DES TIREURS'!F199)","v":0},null,2]
[118,null,null,{"$f":"INDEX('LISTE DES TIREURS'!E$83:E$85,'LISTE DES TIREURS'!F200)","v":0},null,2]
[119,null,null,{"$f":"INDEX('LISTE DES TIREURS'!E$83:E$85,'LISTE DES TIREURS'!F201)","v":0},null,2]
[120,null,null,{"$f":"INDEX('LISTE DES TIREURS'!E$83:E$85,'LISTE DES TIREURS'!F202)","v":0},null,2]
[121,null,null,{"$f":"INDEX('LISTE DES TIREURS'!E$83:E$85,'LISTE DES TIREURS'!F203)","v":0},null,2]
[122,null,null,{"$f":"INDEX('LISTE DES TIREURS'!E$83:E$85,'LISTE DES TIREURS'!F204)","v":0},null,2]
[123,null,null,{"$f":"INDEX('LISTE DES TIREURS'!E$83:E$85,'LISTE DES TIREURS'!F205)","v":0},null,1]
[124,null,null,{"$f":"INDEX('LISTE DES TIREURS'!E$83:E$85,'LISTE DES TIREURS'!F206)","v":0},null,1]
[125,null,null,{"$f":"INDEX('LISTE DES TIREURS'!E$83:E$85,'LISTE DES TIREURS'!F207)","v":0},null,1]
[126,null,null,{"$f":"INDEX('LISTE DES TIREURS'!E$83:E$85,'LISTE DES TIREURS'!F208)","v":0},null,1]
[127,null,null,{"$f":"INDEX('LISTE DES TIREURS'!E$83:E$85,'LISTE DES TIREURS'!F209)","v":0},null,1]
[128,null,null,{"$f":"INDEX('LISTE DES TIREURS'!E$83:E$85,'LISTE DES TIREURS'!F210)","v":0},null,1]
[129,null,null,{"$f":"INDEX('LISTE DES TIREURS'!E$83:E$85,'LISTE DES TIREURS'!F211)","v":0},null,1]
[130,null,null,{"$f":"INDEX('LISTE DES TIREURS'!E$83:E$85,'LISTE DES TIREURS'!F212)","v":0},null,1]
[131,null,null,{"$f":"INDEX('LISTE DES TIREURS'!E$83:E$85,'LISTE DES TIREURS'!F213)","v":0},null,1]
[132,null,null,{"$f":"INDEX('LISTE DES TIREURS'!E$83:E$85,'LISTE DES TIREURS'!F214)","v":0},null,1]
[133,null,null,{"$f":"INDEX('LISTE DES TIREURS'!E$83:E$85,'LISTE DES TIREURS'!F215)","v":0},null,1]
[134,null,null,{"$f":"INDEX('LISTE DES TIREURS'!E$83:E$85,'LISTE DES TIREURS'!F216)","v":0},null,1]
[135,null,null,{"$f":"INDEX('LISTE DES TIREURS'!E$83:E$85,'LISTE DES TIREURS'!F217)","v":0},null,1]
[136,null,null,{"$f":"INDEX('LISTE DES TIREURS'!E$83:E$85,'LISTE DES TIREURS'!F218)","v":0},null,1]
[137,null,null,{"$f":"INDEX('LISTE DES TIREURS'!E$83:E$85,'LISTE DES TIREURS'!F219)","v":0},null,1]
[138,null,null,{"$f":"INDEX('LISTE DES TIREURS'!E$83:E$85,'LISTE DES TIREURS'!F220)","v":0},null,1]
[139,null,null,{"$f":"INDEX('LISTE DES TIREURS'!E$83:E$85,'LISTE DES TIREURS'!F221)","v":0},null,1]
[140,null,null,{"$f":"INDEX('LISTE DES TIREURS'!E$83:E$85,'LISTE DES TIREURS'!F222)","v":0},null,1]
[141,null,null,{"$f":"INDEX('LISTE DES TIREURS'!E$83:E$85,'LISTE DES TIREURS'!F223)","v":0},null,1]
[142,null,null,{"$f":"INDEX('LISTE DES TIREURS'!E$83:E$85,'LISTE DES TIREURS'!F224)","v":0},null,1]
[143,null,null,{"$f":"INDEX('LISTE DES TIREURS'!E$83:E$85,'LISTE DES TIREURS'!F225)","v":0},null,1]
[144,null,null,{"$f":"INDEX('LISTE DES TIREURS'!E$83:E$85,'LISTE DES TIREURS'!F226)","v":0},null,1]
[145,null,null,{"$f":"INDEX('LISTE DES TIREURS'!E$83:E$85,'LISTE DES TIREURS'!F227)","v":0},null,1]
[146,null,null,{"$f":"INDEX('LISTE DES TIREURS'!E$83:E$85,'LISTE DES TIREURS'!F228)","v":0},null,1]
[147,null,null,{"$f":"INDEX('LISTE DES TIREURS'!E$83:E$85,'LISTE DES TIREURS'!F229)","v":0},null,1]
[148,null,null,{"$f":"INDEX('LISTE DES TIREURS'!E$83:E$85,'LISTE DES TIREURS'!F230)","v":0},null,1]
[149,null,null,{"$f":"INDEX('LISTE DES TIREURS'!E$83:E$85,'LISTE DES TIREURS'!F231)","v":0},null,1]
[150,null,null,{"$f":"INDEX('LISTE DES TIREURS'!E$83:E$85,'LISTE DES TIREURS'!F232)","v":0},null,1]
[151,null,null,{"$f":"INDEX('LISTE DES TIREURS'!E$83:E$85,'LISTE DES TIREURS'!F233)","v":0},null,1]
[152,null,null,{"$f":"INDEX('LISTE DES TIREURS'!E$83:E$85,'LISTE DES TIREURS'!F234)","v":0},null,1]
[153,null,null,{"$f":"INDEX('LISTE DES TIREURS'!E$83:E$85,'LISTE DES TIREURS'!F235)","v":0},null,1]
[154,null,null,{"$f":"INDEX('LISTE DES TIREURS'!E$83:E$85,'LISTE DES TIREURS'!F236)","v":0},null,1]
[155,null,null,{"$f":"INDEX('LISTE DES TIREURS'!E$83:E$85,'LISTE DES TIREURS'!F237)","v":0},null,1]
[156,null,null,{"$f":"INDEX('LISTE DES TIREURS'!E$83:E$85,'LISTE DES TIREURS'!F238)","v":0},null,1]
[157,null,null,{"$f":"INDEX('LISTE DES TIREURS'!E$83:E$85,'LISTE DES TIREURS'!F239)","v":0},null,1]
[158,null,null,{"$f":"INDEX('LISTE DES TIREURS'!E$83:E$85,'LISTE DES TIREURS'!F240)","v":0},null,1]
[159,null,null,{"$f":"INDEX('LISTE DES TIREURS'!E$83:E$85,'LISTE DES TIREURS'!F241)","v":0},null,1]
[160,null,null,{"$f":"INDEX('LISTE DES TIREURS'!E$83:E$85,'LISTE DES TIREURS'!F242)","v":0},null,1]
[161,null,null,{"$f":"INDEX('LISTE DES TIREURS'!E$83:E$85,'LISTE DES TIREURS'!F243)","v":0},null,1]
[162,null,null,{"$f":"INDEX('LISTE DES TIREURS'!E$83:E$85,'LISTE DES TIREURS'!F244)","v":0},null,1]
[163,null,null,{"$f":"INDEX('LISTE DES TIREURS'!E$83:E$85,'LISTE DES TIREURS'!F245)","v":0},null,1]
[164,null,null,{"$f":"INDEX('LISTE DES TIREURS'!E$83:E$85,'LISTE DES TIREURS'!F246)","v":0},null,1]
[165,null,null,{"$f":"INDEX('LISTE DES TIREURS'!E$83:E$85,'LISTE DES TIREURS'!F247)","v":0},null,1]
[166,null,null,{"$f":"INDEX('LISTE DES TIREURS'!E$83:E$85,'LISTE DES TIREURS'!F248)","v":0},null,1]
[167,null,null,{"$f":"INDEX('LISTE DES TIREURS'!E$83:E$85,'LISTE DES TIREURS'!F249)","v":0},null,1]
[168,null,null,{"$f":"INDEX('LISTE DES TIREURS'!E$83:E$85,'LISTE DES TIREURS'!F250)","v":0},null,1]
[169,null,null,{"$f":"INDEX('LISTE DES TIREURS'!E$83:E$85,'LISTE DES TIREURS'!F251)","v":0},null,1]
[170,null,null,{"$f":"INDEX('LISTE DES TIREURS'!E$83:E$85,'LISTE DES TIREURS'!F252)","v":0},null,1]
[null,null,null,null,null,1]
[null,null,null,null,null,1]
[null,null,null,null,null,1]
[null,null,null,null,null,1]
[null,null,null,null,null,1]
[null,null,null,null,null,1]
[null,null,null,null,null,1]
[null,null,null,null,null,1]

{"sheet":"FEUILLE D'INSCRIPTION","index":1,"n_rows":1035,"n_cols":24,"rows_kept":1035,"cut":false,"hidden":false,"merged":[[2,23,2,27],[10,0,11,0],[1,0,2,0],[1,1,2,1],[1,2,2,2],[1,3,2,3],[3,0,4,0],[3,1,4,1],[3,2,4,2],[3,3,4,3],[6,0,7,0],[6,1,7,1],[6,2,7,2],[6,3,7,3],[6,4,7,4],[5,1,5,2],[0,17,5,17],[0,14,1,16],[1,4,2,4],[3,4,4,4],[3,10,5,10],[3,12,5,12],[2,9,5,9],[4,14,4,16],[2,14,3,16]]}
["ANNEE - JAHR",null,null,null,"CATEGORIE","Entreprise",null,null,{"$f":"'LISTE DES TIREURS'!D2","v":2022},null,null,null,null,null,"Participation au tir",null,null,"Rouge =                      tireur à double",5]
[{"$f":"'LISTE DES TIREURS'!$D$2-59","v":1963},"à",{"$f":"'LISTE DES TIREURS'!$D$2-20","v":2002},"=","Elite             Dame","LIEBHERR MACHINES BULLE SA",null,null,null,null,null,null,null,null,null,null,null,null,null,null,null,null,null,"A envoyer à :"]
[null,null,null,null,null,"Catégorie :","A","Equipe",14," N° de groupe",null,null,null,null,"Teilnahme Schießen",null,null,null,null,null,null,null,null,"hubert.thiemard@tir-interusines.ch"]
[{"$f":"'LISTE DES TIREURS'!$D$2-69","v":1953},"à",{"$f":"'LISTE DES TIREURS'!$D$2-60","v":1962},"=","Vétéran      Dame Vétéran","Liste des tireurs",null,null,null,null," N° d'équipe",null," Catégorie 2"]
[null,null,null,null,null,"Nom prénom","Année nais.","Catégorie 1","Nom de groupe",null,null,"Entreprise - Firma",null,"Arme","Séance"]
["<",{"$f":"'LISTE DES TIREURS'!$D$2-70","v":1952},null,"=","Sénior Vétéran     ","Name Vorname","Geburtsjahr",null,"Gruppe",null,null,null,null,"Waffe","1e VE","2e SA","3e SA"]
[{"$f":"'LISTE DES TIREURS'!$D$2-19","v":2003},"à",{"$f":"'LISTE DES TIREURS'!$D$2-17","v":2005},"=","Junior             Junior Dame",{"$f":"INDEX('LISTE DES TIREURS'!B$74:B$244,'FEUILLE D''INSCRIPTION'!S7)","v":"BESIM DEMIRI"},{"$f":"INDEX('LISTE DES TIREURS'!C$74:C$244,'FEUILLE D''INSCRIPTION'!S7)","v":1981},{"$f":"INDEX('FEUILLE D''INSCRIPTION'!U$7:U$15,'FEUILLE D''INSCRIPTION'!T7)","v":"ELITE"},{"$f":"INDEX('LISTE DES TIREURS'!G$8:G$82,'FEUILLE D''INSCRIPTION'!V7)","v":"LE MOLESON LMB"},"L",{"$f":"IF(F7>0,$I$3,\"\")","v":14},{"$f":"IF(F7>0,$F$2,\"\")","v":"LIEBHERR MACHINES BULLE SA"},{"$f":"IF(F7>0,$G$3,\"\")","v":"A"},{"$f":"INDEX('LISTE DES TIREURS'!D$74:D$244,'FEUILLE D''INSCRIPTION'!S7)","v":"F90"},null,null,null,{"$f":"COUNTIFS($S$7:$S$181,S7)","v":1},14,2,null,14]
[null,null,null,null,null,{"$f":"INDEX('LISTE DES TIREURS'!B$74:B$244,'FEUILLE D''INSCRIPTION'!S8)","v":"CHALABI DAVID"},{"$f":"INDEX('LISTE DES TIREURS'!C$74:C$244,'FEUILLE D''INSCRIPTION'!S8)","v":1996},{"$f":"INDEX('FEUILLE D''INSCRIPTION'!U$7:U$15,'FEUILLE D''INSCRIPTION'!T8)","v":"VETERAN"},{"$f":"INDEX('LISTE DES TIREURS'!G$8:G$82,'FEUILLE D''INSCRIPTION'!V8)","v":"LE MOLESON LMB"},"L",{"$f":"IF(F8>0,$I$3,\"\")","v":14},{"$f":"IF(F8>0,$F$2,\"\")","v":"LIEBHERR MACHINES BULLE SA"},{"$f":"IF(F8>0,$G$3,\"\")","v":"A"},{"$f":"INDEX('LISTE DES TIREURS'!D$74:D$244,'FEUILLE D''INSCRIPTION'!S8)","v":"F90"},null,null,null,{"$f":"COUNTIFS($S$7:$S$181,S8)","v":1},18,3,"ELITE",14]
[{"$f":"'LISTE DES TIREURS'!$D$2-16","v":2006},"à",{"$f":"'LISTE DES TIREURS'!$D$2-10","v":2012},"=","Adolescent",{"$f":"INDEX('LISTE DES TIREURS'!B$74:B$244,'FEUILLE D''INSCRIPTION'!S9)","v":"CORBINELLI GIOVANNI"},{"$f":"INDEX('LISTE DES TIREURS'!C$74:C$244,'FEUILLE D''INSCRIPTION'!S9)","v":1978},{"$f":"INDEX('FEUILLE D''INSCRIPTION'!U$7:U$15,'FEUILLE D''INSCRIPTION'!T9)","v":"ELITE"},{"$f":"INDEX('LISTE DES TIREURS'!G$8:G$82,'FEUILLE D''INSCRIPTION'!V9)","v":"LE MOLESON LMB"},"M",14,"LIEBHERR MACHINES BULLE SA","A",{"$f":"INDEX('LISTE DES TIREURS'!D$74:D$244,'FEUILLE D''INSCRIPTION'!S9)","v":"F90"},null,null,null,1,22,2,"VETERAN",14]
[null,null,null,null,null,{"$f":"INDEX('LISTE DES TIREURS'!B$74:B$244,'FEUILLE D''INSCRIPTION'!S10)","v":"MARTINS MARQUES FILIPE"},{"$f":"INDEX('LISTE DES TIREURS'!C$74:C$244,'FEUILLE D''INSCRIPTION'!S10)","v":1986},{"$f":"INDEX('FEUILLE D''INSCRIPTION'!U$7:U$15,'FEUILLE D''INSCRIPTION'!T10)","v":"DAME VETERAN"},{"$f":"INDEX('LISTE DES TIREURS'!G$8:G$82,'FEUILLE D''INSCRIPTION'!V10)","v":"LE MOLESON LMB"},"XXL",14,"LIEBHERR MACHINES BULLE SA","A",{"$f":"INDEX('LISTE DES TIREURS'!D$74:D$244,'FEUILLE D''INSCRIPTION'!S10)","v":"F90"},null,null,null,1,65,6,"SENIOR VETERAN",14]
[null,null,null,null,null,{"$f":"INDEX('LISTE DES TIREURS'!B$74:B$244,'FEUILLE D''INSCRIPTION'!S11)","v":"MEIER MAXIMILIANO"},{"$f":"INDEX('LISTE DES TIREURS'!C$74:C$244,'FEUILLE D''INSCRIPTION'!S11)","v":1987},{"$f":"INDEX('FEUILLE D''INSCRIPTION'!U$7:U$15,'FEUILLE D''INSCRIPTION'!T11)","v":"ELITE"},{"$f":"INDEX('LISTE DES TIREURS'!G$8:G$82,'FEUILLE D''INSCRIPTION'!V11)","v":"LE MOLESON LMB"},"M",{"$f":"IF(F11>0,$I$3,\"\")","v":14},"LIEBHERR MACHINES BULLE SA","A",{"$f":"INDEX('LISTE DES TIREURS'!D$74:D$244,'FEUILLE D''INSCRIPTION'!S11)","v":"F90"},null,null,null,1,68,2,"DAME",14]
[null,null,null,null,null,null,null,null,null,null,null,null,null,null,null,null,null,null,null,null,"DAME VETERAN"]
[null,null,null,null,null,{"$f":"INDEX('LISTE DES TIREURS'!B$74:B$244,'FEUILLE D''INSCRIPTION'!S13)","v":"MASTROGUILIO GIUSEPPE"},{"$f":"INDEX('LISTE DES TIREURS'!C$74:C$244,'FEUILLE D''INSCRIPTION'!S13)","v":1995},{"$f":"INDEX('FEUILLE D''INSCRIPTION'!U$7:U$15,'FEUILLE D''INSCRIPTION'!T13)","v":"ELITE"},{"$f":"INDEX('LISTE DES TIREURS'!G$8:G$82,'FEUILLE D''INSCRIPTION'!V13)","v":"LA VUDALLA LMB"},"M",14,"LIEBHERR MACHINES BULLE SA","A",{"$f":"INDEX('LISTE DES TIREURS'!D$74:D$244,'FEUILLE D''INSCRIPTION'!S13)","v":"F90"},null,null,null,{"$f":"COUNTIFS($S$7:$S$181,S13)","v":1},67,2,"JUNIOR",11]
[null,null,null,null,null,{"$f":"INDEX('LISTE DES TIREURS'!B$74:B$244,'FEUILLE D''INSCRIPTION'!S14)","v":"ELISEEV OLEG"},{"$f":"INDEX('LISTE DES TIREURS'!C$74:C$244,'FEUILLE D''INSCRIPTION'!S14)","v":1984},{"$f":"INDEX('FEUILLE D''INSCRIPTION'!U$7:U$15,'FEUILLE D''INSCRIPTION'!T14)","v":"ELITE"},{"$f":"INDEX('LISTE DES TIREURS'!G$8:G$82,'FEUILLE D''INSCRIPTION'!V14)","v":"LA VUDALLA LMB"},"XXL",14,"LIEBHERR MACHINES BULLE SA","A",{"$f":"INDEX('LISTE DES TIREURS'!D$74:D$244,'FEUILLE D''INSCRIPTION'!S14)","v":"F90"},null,null,null,{"$f":"COUNTIFS($S$7:$S$181,S14)","v":1},35,2,"JUNIOR DAME",11]
[null,null,null,null,null,{"$f":"INDEX('LISTE DES TIREURS'!B$74:B$244,'FEUILLE D''INSCRIPTION'!S15)","v":"GALLAND STELMA"},{"$f":"INDEX('LISTE DES TIREURS'!C$74:C$244,'FEUILLE D''INSCRIPTION'!S15)","v":1986},{"$f":"INDEX('FEUILLE D''INSCRIPTION'!U$7:U$15,'FEUILLE D''INSCRIPTION'!T15)","v":"VETERAN"},{"$f":"INDEX('LISTE DES TIREURS'!G$8:G$82,'FEUILLE D''INSCRIPTION'!V15)","v":"LA VUDALLA LMB"},"L",14,"LIEBHERR MACHINES BULLE SA","A",{"$f":"INDEX('LISTE DES TIREURS'!D$74:D$244,'FEUILLE D''INSCRIPTION'!S15)","v":"F90"},null,null,null,{"$f":"COUNTIFS($S$7:$S$181,S15)","v":1},46,3,"ADOLESCENT",11]
[null,null,null,null,null,{"$f":"INDEX('LISTE DES TIREURS'!B$74:B$244,'FEUILLE D''INSCRIPTION'!S16)","v":"MARTIN JEAN-PIERRE"},{"$f":"INDEX('LISTE DES TIREURS'!C$74:C$244,'FEUILLE D''INSCRIPTION'!S16)","v":1969},{"$f":"INDEX('FEUILLE D''INSCRIPTION'!U$7:U$15,'FEUILLE D''INSCRIPTION'!T16)","v":"ELITE"},{"$f":"INDEX('LISTE DES TIREURS'!G$8:G$82,'FEUILLE D''INSCRIPTION'!V16)","v":"LA VUDALLA LMB"},"XL",14,"LIEBHERR MACHINES BULLE SA","A",{"$f":"INDEX('LISTE DES TIREURS'!D$74:D$244,'FEUILLE D''INSCRIPTION'!S16)","v":"F57 / M"},null,null,null,{"$f":"IF(S16<=1,\"\",COUNTIFS($S$7:$S$181,S16))","v":1},64,2,null,11]
[null,null,null,null,null,{"$f":"INDEX('LISTE DES TIREURS'!B$74:B$244,'FEUILLE D''INSCRIPTION'!S17)","v":"PICCAND VINCENT"},{"$f":"INDEX('LISTE DES TIREURS'!C$74:C$244,'FEUILLE D''INSCRIPTION'!S17)","v":2000},{"$f":"INDEX('FEUILLE D''INSCRIPTION'!U$7:U$15,'FEUILLE D''INSCRIPTION'!T17)","v":"ELITE"},{"$f":"INDEX('LISTE DES TIREURS'!G$8:G$82,'FEUILLE D''INSCRIPTION'!V17)","v":"LA VUDALLA LMB"},"XL",14,"LIEBHERR MACHINES BULLE SA","A",{"$f":"INDEX('LISTE DES TIREURS'!D$74:D$244,'FEUILLE D''INSCRIPTION'!S17)","v":"F90"},null,null,null,1,80,2,null,11]
[]
[null,null,null,null,null,{"$f":"INDEX('LISTE DES TIREURS'!B$74:B$244,'FEUILLE D''INSCRIPTION'!S19)","v":"FENELON ROBIN"},{"$f":"INDEX('LISTE DES TIREURS'!C$74:C$244,'FEUILLE D''INSCRIPTION'!S19)","v":1989},{"$f":"INDEX('FEUILLE D''INSCRIPTION'!U$7:U$15,'FEUILLE D''INSCRIPTION'!T19)","v":"ELITE"},{"$f":"INDEX('LISTE DES TIREURS'!G$8:G$82,'FEUILLE D''INSCRIPTION'!V19)","v":"LA BERRA LMB"},"XL",14,"LIEBHERR MACHINES BULLE SA","A",{"$f":"INDEX('LISTE DES TIREURS'!D$74:D$244,'FEUILLE D''INSCRIPTION'!S19)","v":"F90"},null,null,null,{"$f":"COUNTIFS($S$7:$S$181,S19)","v":1},37,2,null,4]
[null,null,null,null,null,{"$f":"INDEX('LISTE DES TIREURS'!B$74:B$244,'FEUILLE D''INSCRIPTION'!S20)","v":"VIDEIRA LUIS"},{"$f":"INDEX('LISTE DES TIREURS'!C$74:C$244,'FEUILLE D''INSCRIPTION'!S20)","v":1989},{"$f":"INDEX('FEUILLE D''INSCRIPTION'!U$7:U$15,'FEUILLE D''INSCRIPTION'!T20)","v":"ELITE"},{"$f":"INDEX('LISTE DES TIREURS'!G$8:G$82,'FEUILLE D''INSCRIPTION'!V20)","v":"LA BERRA LMB"},"L",14,"LIEBHERR MACHINES BULLE SA","A",{"$f":"INDEX('LISTE DES TIREURS'!D$74:D$244,'FEUILLE D''INSCRIPTION'!S20)","v":"F90"},null,null,null,{"$f":"COUNTIFS($S$7:$S$181,S20)","v":1},104,2,null,4]
[null,null,null,null,null,{"$f":"INDEX('LISTE DES TIREURS'!B$74:B$244,'FEUILLE D''INSCRIPTION'!S21)","v":"HENRY REGIS"},{"$f":"INDEX('LISTE DES TIREURS'!C$74:C$244,'FEUILLE D''INSCRIPTION'!S21)","v":1989},{"$f":"INDEX('FEUILLE D''INSCRIPTION'!U$7:U$15,'FEUILLE D''INSCRIPTION'!T21)","v":"DAME"},{"$f":"INDEX('LISTE DES TIREURS'!G$8:G$82,'FEUILLE D''INSCRIPTION'!V21)","v":"LA BERRA LMB"},"S",14,"LIEBHERR MACHINES BULLE SA","A",{"$f":"INDEX('LISTE DES TIREURS'!D$74:D$244,'FEUILLE D''INSCRIPTION'!S21)","v":"F90"},null,null,null,{"$f":"COUNTIFS($S$7:$S$181,S21)","v":1},52,5,null,4]
[null,null,null,null,null,{"$f":"INDEX('LISTE DES TIREURS'!B$74:B$244,'FEUILLE D''INSCRIPTION'!S22)","v":"MENOUD SEBASTIEN"},{"$f":"INDEX('LISTE DES TIREURS'!C$74:C$244,'FEUILLE D''INSCRIPTION'!S22)","v":1974},{"$f":"INDEX('FEUILLE D''INSCRIPTION'!U$7:U$15,'FEUILLE D''INSCRIPTION'!T22)","v":"DAME"},{"$f":"INDEX('LISTE DES TIREURS'!G$8:G$82,'FEUILLE D''INSCRIPTION'!V22)","v":"LA BERRA LMB"},"M",14,"LIEBHERR MACHINES BULLE SA","A",{"$f":"INDEX('LISTE DES TIREURS'!D$74:D$244,'FEUILLE D''INSCRIPTION'!S22)","v":"F57 / M"},null,null,null,{"$f":"IF(S22<=1,\"\",COUNTIFS($S$7:$S$181,S22))","v":1},70,5,null,4]
[null,null,null,null,null,{"$f":"INDEX('LISTE DES TIREURS'!B$74:B$244,'FEUILLE D''INSCRIPTION'!S23)","v":"PETITJEAN BRICE"},{"$f":"INDEX('LISTE DES TIREURS'!C$74:C$244,'FEUILLE D''INSCRIPTION'!S23)","v":1990},{"$f":"INDEX('FEUILLE D''INSCRIPTION'!U$7:U$15,'FEUILLE D''INSCRIPTION'!T23)","v":"DAME"},{"$f":"INDEX('LISTE DES TIREURS'!G$8:G$82,'FEUILLE D''INSCRIPTION'!V23)","v":"LA BERRA LMB"},"L",14,"LIEBHERR MACHINES BULLE SA","A",{"$f":"INDEX('LISTE DES TIREURS'!D$74:D$244,'FEUILLE D''INSCRIPTION'!S23)","v":"F90"},null,null,null,1,79,5,null,4]
[]
[null,null,null,null,null,{"$f":"INDEX('LISTE DES TIREURS'!B$74:B$244,'FEUILLE D''INSCRIPTION'!S25)","v":"HEINZL MICKAEL"},{"$f":"INDEX('LISTE DES TIREURS'!C$74:C$244,'FEUILLE D''INSCRIPTION'!S25)","v":1972},{"$f":"INDEX('FEUILLE D''INSCRIPTION'!U$7:U$15,'FEUILLE D''INSCRIPTION'!T25)","v":"ELITE"},{"$f":"INDEX('LISTE DES TIREURS'!G$8:G$82,'FEUILLE D''INSCRIPTION'!V25)","v":"BIFFE LMB"},"M",14,"LIEBHERR MACHINES BULLE SA","A",{"$f":"INDEX('LISTE DES TIREURS'!D$74:D$244,'FEUILLE D''INSCRIPTION'!S25)","v":"F90"},null,null,null,{"$f":"COUNTIFS($S$7:$S$181,S25)","v":1},51,2,null,3]
[null,null,null,null,null,{"$f":"INDEX('LISTE DES TIREURS'!B$74:B$244,'FEUILLE D''INSCRIPTION'!S26)","v":"GALLAND MAXIME"},{"$f":"INDEX('LISTE DES TIREURS'!C$74:C$244,'FEUILLE D''INSCRIPTION'!S26)","v":1987},{"$f":"INDEX('FEUILLE D''INSCRIPTION'!U$7:U$15,'FEUILLE D''INSCRIPTION'!T26)","v":"ELITE"},{"$f":"INDEX('LISTE DES TIREURS'!G$8:G$82,'FEUILLE D''INSCRIPTION'!V26)","v":"BIFFE LMB"},"XL",14,"LIEBHERR MACHINES BULLE SA","A",{"$f":"INDEX('LISTE DES TIREURS'!D$74:D$244,'FEUILLE D''INSCRIPTION'!S26)","v":"F57 / M"},null,null,null,{"$f":"COUNTIFS($S$7:$S$181,S26)","v":1},45,2,null,3]
[null,null,null,null,null,{"$f":"INDEX('LISTE DES TIREURS'!B$74:B$244,'FEUILLE D''INSCRIPTION'!S27)","v":"MENDES DE BESSA JOSE CARLOS"},{"$f":"INDEX('LISTE DES TIREURS'!C$74:C$244,'FEUILLE D''INSCRIPTION'!S27)","v":1993},{"$f":"INDEX('FEUILLE D''INSCRIPTION'!U$7:U$15,'FEUILLE D''INSCRIPTION'!T27)","v":"ELITE"},{"$f":"INDEX('LISTE DES TIREURS'!G$8:G$82,'FEUILLE D''INSCRIPTION'!V27)","v":"BIFFE LMB"},"L",14,"LIEBHERR MACHINES BULLE SA","A",{"$f":"INDEX('LISTE DES TIREURS'!D$74:D$244,'FEUILLE D''INSCRIPTION'!S27)","v":"F90"},null,null,null,{"$f":"COUNTIFS($S$7:$S$181,S27)","v":1},69,2,null,3]
[null,null,null,null,null,{"$f":"INDEX('LISTE DES TIREURS'!B$74:B$244,'FEUILLE D''INSCRIPTION'!S28)","v":"MASTROGUILIO ANTONIO"},{"$f":"INDEX('LISTE DES TIREURS'!C$74:C$244,'FEUILLE D''INSCRIPTION'!S28)","v":1993},{"$f":"INDEX('FEUILLE D''INSCRIPTION'!U$7:U$15,'FEUILLE D''INSCRIPTION'!T28)","v":"ELITE"},{"$f":"INDEX('LISTE DES TIREURS'!G$8:G$82,'FEUILLE D''INSCRIPTION'!V28)","v":"BIFFE LMB"},"M",14,"LIEBHERR MACHINES BULLE SA","A",{"$f":"INDEX('LISTE DES TIREURS'!D$74:D$244,'FEUILLE D''INSCRIPTION'!S28)","v":"F90"},null,null,null,{"$f":"IF(S28<=1,\"\",COUNTIFS($S$7:$S$181,S28))","v":1},66,2,null,3]
[null,null,null,null,null,{"$f":"INDEX('LISTE DES TIREURS'!B$74:B$244,'FEUILLE D''INSCRIPTION'!S29)","v":"WYSSMUELLER ALAIN"},{"$f":"INDEX('LISTE DES TIREURS'!C$74:C$244,'FEUILLE D''INSCRIPTION'!S29)","v":1992},{"$f":"INDEX('FEUILLE D''INSCRIPTION'!U$7:U$15,'FEUILLE D''INSCRIPTION'!T29)","v":"ELITE"},{"$f":"INDEX('LISTE DES TIREURS'!G$8:G$82,'FEUILLE D''INSCRIPTION'!V29)","v":"BIFFE LMB"},"L",14,"LIEBHERR MACHINES BULLE SA","A",{"$f":"INDEX('LISTE DES TIREURS'!D$74:D$244,'FEUILLE D''INSCRIPTION'!S29)","v":"F90"},null,null,null,1,111,2,null,3]
[]
[null,null,null,null,null,{"$f":"INDEX('LISTE DES TIREURS'!B$74:B$244,'FEUILLE D''INSCRIPTION'!S31)","v":"LARBI SAMUEL"},{"$f":"INDEX('LISTE DES TIREURS'!C$74:C$244,'FEUILLE D''INSCRIPTION'!S31)","v":1990},{"$f":"INDEX('FEUILLE D''INSCRIPTION'!U$7:U$15,'FEUILLE D''INSCRIPTION'!T31)","v":"ELITE"},{"$f":"INDEX('LISTE DES TIREURS'!G$8:G$82,'FEUILLE D''INSCRIPTION'!V31)","v":"LA CHIA LMB"},{"$f":"INDEX('LISTE DES TIREURS'!F$8:F$82,'FEUILLE D''INSCRIPTION'!V31)","v":0},14,"LIEBHERR MACHINES BULLE SA","A",{"$f":"INDEX('LISTE DES TIREURS'!D$74:D$244,'FEUILLE D''INSCRIPTION'!S31)","v":"F57 / M"},null,null,null,{"$f":"COUNTIFS($S$7:$S$181,S31)","v":1},59,2,null,5]
[null,null,null,null,null,{"$f":"INDEX('LISTE DES TIREURS'!B$74:B$244,'FEUILLE D''INSCRIPTION'!S32)","v":"BORCARD GILLES"},{"$f":"INDEX('LISTE DES TIREURS'!C$74:C$244,'FEUILLE D''INSCRIPTION'!S32)","v":0},{"$f":"INDEX('FEUILLE D''INSCRIPTION'!U$7:U$15,'FEUILLE D''INSCRIPTION'!T32)","v":"ELITE"},{"$f":"INDEX('LISTE DES TIREURS'!G$8:G$82,'FEUILLE D''INSCRIPTION'!V32)","v":"LA CHIA LMB"},"M",14,"LIEBHERR MACHINES BULLE SA","A",{"$f":"INDEX('LISTE DES TIREURS'!D$74:D$244,'FEUILLE D''INSCRIPTION'!S32)","v":"F90"},null,null,null,{"$f":"COUNTIFS($S$7:$S$181,S32)","v":1},17,2,null,5]
[null,null,null,null,null,{"$f":"INDEX('LISTE DES TIREURS'!B$74:B$244,'FEUILLE D''INSCRIPTION'!S33)","v":"DEFFERARD VALENTIN"},{"$f":"INDEX('LISTE DES TIREURS'!C$74:C$244,'FEUILLE D''INSCRIPTION'!S33)","v":1992},{"$f":"INDEX('FEUILLE D''INSCRIPTION'!U$7:U$15,'FEUILLE D''INSCRIPTION'!T33)","v":"ELITE"},{"$f":"INDEX('LISTE DES TIREURS'!G$8:G$82,'FEUILLE D''INSCRIPTION'!V33)","v":"LA CHIA LMB"},"L",14,"LIEBHERR MACHINES BULLE SA","A",{"$f":"INDEX('LISTE DES TIREURS'!D$74:D$244,'FEUILLE D''INSCRIPTION'!S33)","v":"F90"},null,null,null,{"$f":"COUNTIFS($S$7:$S$181,S33)","v":1},28,2,null,5]
[null,null,null,null,null,{"$f":"INDEX('LISTE DES TIREURS'!B$74:B$244,'FEUILLE D''INSCRIPTION'!S34)","v":"MORISSET ALEXANDRE"},{"$f":"INDEX('LISTE DES TIREURS'!C$74:C$244,'FEUILLE D''INSCRIPTION'!S34)","v":1974},{"$f":"INDEX('FEUILLE D''INSCRIPTION'!U$7:U$15,'FEUILLE D''INSCRIPTION'!T34)","v":"ELITE"},{"$f":"INDEX('LISTE DES TIREURS'!G$8:G$82,'FEUILLE D''INSCRIPTION'!V34)","v":"LA CHIA LMB"},"M",14,"LIEBHERR MACHINES BULLE SA","A",{"$f":"INDEX('LISTE DES TIREURS'!D$74:D$244,'FEUILLE D''INSCRIPTION'!S34)","v":"F90"},null,null,null,{"$f":"IF(S34<=1,\"\",COUNTIFS($S$7:$S$181,S34))","v":1},74,2,null,5]
[null,null,null,null,null,{"$f":"INDEX('LISTE DES TIREURS'!B$74:B$244,'FEUILLE D''INSCRIPTION'!S35)","v":"TOUCHEFEU THIBAUT"},{"$f":"INDEX('LISTE DES TIREURS'!C$74:C$244,'FEUILLE D''INSCRIPTION'!S35)","v":1986},{"$f":"INDEX('FEUILLE D''INSCRIPTION'!U$7:U$15,'FEUILLE D''INSCRIPTION'!T35)","v":"ELITE"},{"$f":"INDEX('LISTE DES TIREURS'!G$8:G$82,'FEUILLE D''INSCRIPTION'!V35)","v":"LA CHIA LMB"},{"$f":"INDEX('LISTE DES TIREURS'!F$8:F$82,'FEUILLE D''INSCRIPTION'!V35)","v":0},14,"LIEBHERR MACHINES BULLE SA","A",{"$f":"INDEX('LISTE DES TIREURS'!D$74:D$244,'FEUILLE D''INSCRIPTION'!S35)","v":"F90"},null,null,null,1,99,2,null,5]
[]
[null,null,null,null,null,{"$f":"INDEX('LISTE DES TIREURS'!B$74:B$244,'FEUILLE D''INSCRIPTION'!S37)","v":"AKROUT SAMIR"},{"$f":"INDEX('LISTE DES TIREURS'!C$74:C$244,'FEUILLE D''INSCRIPTION'!S37)","v":1974},{"$f":"INDEX('FEUILLE D''INSCRIPTION'!U$7:U$15,'FEUILLE D''INSCRIPTION'!T37)","v":"ELITE"},{"$f":"INDEX('LISTE DES TIREURS'!G$8:G$82,'FEUILLE D''INSCRIPTION'!V37)","v":"LE VANIL NOIR LMB"},"XL",14,"LIEBHERR MACHINES BULLE SA","A",{"$f":"INDEX('LISTE DES TIREURS'!D$74:D$244,'FEUILLE D''INSCRIPTION'!S37)","v":"F90"},null,null,null,{"$f":"COUNTIFS($S$7:$S$181,S37)","v":1},3,2,null,17]
[null,null,null,null,null,{"$f":"INDEX('LISTE DES TIREURS'!B$74:B$244,'FEUILLE D''INSCRIPTION'!S38)","v":"ALTINIER BENOIT"},{"$f":"INDEX('LISTE DES TIREURS'!C$74:C$244,'FEUILLE D''INSCRIPTION'!S38)","v":1983},{"$f":"INDEX('FEUILLE D''INSCRIPTION'!U$7:U$15,'FEUILLE D''INSCRIPTION'!T38)","v":"ELITE"},{"$f":"INDEX('LISTE DES TIREURS'!G$8:G$82,'FEUILLE D''INSCRIPTION'!V38)","v":"LE VANIL NOIR LMB"},"L",14,"LIEBHERR MACHINES BULLE SA","A",{"$f":"INDEX('LISTE DES TIREURS'!D$74:D$244,'FEUILLE D''INSCRIPTION'!S38)","v":"F90"},null,null,null,{"$f":"COUNTIFS($S$7:$S$181,S38)","v":1},4,2,null,17]
[null,null,null,null,null,{"$f":"INDEX('LISTE DES TIREURS'!B$74:B$244,'FEUILLE D''INSCRIPTION'!S39)","v":"ANDRE BENJAMIN"},{"$f":"INDEX('LISTE DES TIREURS'!C$74:C$244,'FEUILLE D''INSCRIPTION'!S39)","v":1988},{"$f":"INDEX('FEUILLE D''INSCRIPTION'!U$7:U$15,'FEUILLE D''INSCRIPTION'!T39)","v":"ELITE"},{"$f":"INDEX('LISTE DES TIREURS'!G$8:G$82,'FEUILLE D''INSCRIPTION'!V39)","v":"LE VANIL NOIR LMB"},"XL",14,"LIEBHERR MACHINES BULLE SA","A",{"$f":"INDEX('LISTE DES TIREURS'!D$74:D$244,'FEUILLE D''INSCRIPTION'!S39)","v":"F90"},null,null,null,{"$f":"COUNTIFS($S$7:$S$181,S39)","v":1},5,2,null,17]
[null,null,null,null,null,{"$f":"INDEX('LISTE DES TIREURS'!B$74:B$244,'FEUILLE D''INSCRIPTION'!S40)","v":"CHATAGNY GAETAN"},{"$f":"INDEX('LISTE DES TIREURS'!C$74:C$244,'FEUILLE D''INSCRIPTION'!S40)","v":1975},{"$f":"INDEX('FEUILLE D''INSCRIPTION'!U$7:U$15,'FEUILLE D''INSCRIPTION'!T40)","v":"ELITE"},{"$f":"INDEX('LISTE DES TIREURS'!G$8:G$82,'FEUILLE D''INSCRIPTION'!V40)","v":"LE VANIL NOIR LMB"},{"$f":"INDEX('LISTE DES TIREURS'!F$8:F$82,'FEUILLE D''INSCRIPTION'!V40)","v":0},14,"LIEBHERR MACHINES BULLE SA","A",{"$f":"INDEX('LISTE DES TIREURS'!D$74:D$244,'FEUILLE D''INSCRIPTION'!S40)","v":"F90"},null,null,null,{"$f":"IF(S40<=1,\"\",COUNTIFS($S$7:$S$181,S40))","v":1},20,2,null,17]
[null,null,null,null,null,{"$f":"INDEX('LISTE DES TIREURS'!B$74:B$244,'FEUILLE D''INSCRIPTION'!S41)","v":"GENTILE NICOLAS"},{"$f":"INDEX('LISTE DES TIREURS'!C$74:C$244,'FEUILLE D''INSCRIPTION'!S41)","v":1987},{"$f":"INDEX('FEUILLE D''INSCRIPTION'!U$7:U$15,'FEUILLE D''INSCRIPTION'!T41)","v":"ELITE"},{"$f":"INDEX('LISTE DES TIREURS'!G$8:G$82,'FEUILLE D''INSCRIPTION'!V41)","v":"LE VANIL NOIR LMB"},{"$f":"INDEX('LISTE DES TIREURS'!F$8:F$82,'FEUILLE D''INSCRIPTION'!V41)","v":0},14,"LIEBHERR MACHINES BULLE SA","A",{"$f":"INDEX('LISTE DES TIREURS'!D$74:D$244,'FEUILLE D''INSCRIPTION'!S41)","v":"F90"},null,null,null,1,47,2,null,17]
[]
[null,null,null,null,null,{"$f":"INDEX('LISTE DES TIREURS'!B$74:B$244,'FEUILLE D''INSCRIPTION'!S43)","v":"BAUDOIS JULIEN"},{"$f":"INDEX('LISTE DES TIREURS'!C$74:C$244,'FEUILLE D''INSCRIPTION'!S43)","v":1985},{"$f":"INDEX('FEUILLE D''INSCRIPTION'!U$7:U$15,'FEUILLE D''INSCRIPTION'!T43)","v":"ELITE"},{"$f":"INDEX('LISTE DES TIREURS'!G$8:G$82,'FEUILLE D''INSCRIPTION'!V43)","v":"LES MERLAS LMB"},"M",14,"LIEBHERR MACHINES BULLE SA","A",{"$f":"INDEX('LISTE DES TIREURS'!D$74:D$244,'FEUILLE D''INSCRIPTION'!S43)","v":"F90"},null,null,null,{"$f":"COUNTIFS($S$7:$S$181,S43)","v":1},10,2,null,19]
[null,null,null,null,null,{"$f":"INDEX('LISTE DES TIREURS'!B$74:B$244,'FEUILLE D''INSCRIPTION'!S44)","v":0},{"$f":"INDEX('LISTE DES TIREURS'!C$74:C$244,'FEUILLE D''INSCRIPTION'!S44)","v":0},{"$f":"INDEX('FEUILLE D''INSCRIPTION'!U$7:U$15,'FEUILLE D''INSCRIPTION'!T44)","v":"ELITE"},{"$f":"INDEX('LISTE DES TIREURS'!G$8:G$82,'FEUILLE D''INSCRIPTION'!V44)","v":"LES MERLAS LMB"},"M","","","",{"$f":"INDEX('LISTE DES TIREURS'!D$74:D$244,'FEUILLE D''INSCRIPTION'!S44)","v":0},null,null,null,{"$f":"COUNTIFS($S$7:$S$181,S44)","v":1},130,2,null,19]
[null,null,null,null,null,{"$f":"INDEX('LISTE DES TIREURS'!B$74:B$244,'FEUILLE D''INSCRIPTION'!S45)","v":"DUPONT MICHEL"},{"$f":"INDEX('LISTE DES TIREURS'!C$74:C$244,'FEUILLE D''INSCRIPTION'!S45)","v":1969},{"$f":"INDEX('FEUILLE D''INSCRIPTION'!U$7:U$15,'FEUILLE D''INSCRIPTION'!T45)","v":"ELITE"},{"$f":"INDEX('LISTE DES TIREURS'!G$8:G$82,'FEUILLE D''INSCRIPTION'!V45)","v":"LES MERLAS LMB"},"XL",14,"LIEBHERR MACHINES BULLE SA","A",{"$f":"INDEX('LISTE DES TIREURS'!D$74:D$244,'FEUILLE D''INSCRIPTION'!S45)","v":"F90"},null,null,null,{"$f":"COUNTIFS($S$7:$S$181,S45)","v":1},33,2,null,19]
[null,null,null,null,null,{"$f":"INDEX('LISTE DES TIREURS'!B$74:B$244,'FEUILLE D''INSCRIPTION'!S46)","v":"UTZ MARTIAL"},{"$f":"INDEX('LISTE DES TIREURS'!C$74:C$244,'FEUILLE D''INSCRIPTION'!S46)","v":1971},{"$f":"INDEX('FEUILLE D''INSCRIPTION'!U$7:U$15,'FEUILLE D''INSCRIPTION'!T46)","v":"ELITE"},{"$f":"INDEX('LISTE DES TIREURS'!G$8:G$82,'FEUILLE D''INSCRIPTION'!V46)","v":"LES MERLAS LMB"},"M",14,"LIEBHERR MACHINES BULLE SA","A",{"$f":"INDEX('LISTE DES TIREURS'!D$74:D$244,'FEUILLE D''INSCRIPTION'!S46)","v":"F90"},null,null,null,{"$f":"IF(S46<=1,\"\",COUNTIFS($S$7:$S$181,S46))","v":1},103,2,null,19]
[null,null,null,null,null,{"$f":"INDEX('LISTE DES TIREURS'!B$74:B$244,'FEUILLE D''INSCRIPTION'!S47)","v":"SPINELLI SOPHIE"},{"$f":"INDEX('LISTE DES TIREURS'!C$74:C$244,'FEUILLE D''INSCRIPTION'!S47)","v":1980},{"$f":"INDEX('FEUILLE D''INSCRIPTION'!U$7:U$15,'FEUILLE D''INSCRIPTION'!T47)","v":"ELITE"},{"$f":"INDEX('LISTE DES TIREURS'!G$8:G$82,'FEUILLE D''INSCRIPTION'!V47)","v":"LES MERLAS LMB"},"L",14,"LIEBHERR MACHINES BULLE SA","A",{"$f":"INDEX('LISTE DES TIREURS'!D$74:D$244,'FEUILLE D''INSCRIPTION'!S47)","v":"F90"},null,null,null,1,92,2,null,19]
[]
[null,null,null,null,null,{"$f":"INDEX('LISTE DES TIREURS'!B$74:B$244,'FEUILLE D''INSCRIPTION'!S49)","v":"THARMANANDA THARMANISHANTH"},{"$f":"INDEX('LISTE DES TIREURS'!C$74:C$244,'FEUILLE D''INSCRIPTION'!S49)","v":1990},{"$f":"INDEX('FEUILLE D''INSCRIPTION'!U$7:U$15,'FEUILLE D''INSCRIPTION'!T49)","v":"ELITE"},{"$f":"INDEX('LISTE DES TIREURS'!G$8:G$82,'FEUILLE D''INSCRIPTION'!V49)","v":"LE COUSIMBERT LMB"},"L",14,"LIEBHERR MACHINES BULLE SA","A",{"$f":"INDEX('LISTE DES TIREURS'!D$74:D$244,'FEUILLE D''INSCRIPTION'!S49)","v":"F90"},null,null,null,{"$f":"COUNTIFS($S$7:$S$181,S49)","v":1},97,2,null,12]
[null,null,null,null,null,{"$f":"INDEX('LISTE DES TIREURS'!B$74:B$244,'FEUILLE D''INSCRIPTION'!S50)","v":"GACHOUD VINCENT"},{"$f":"INDEX('LISTE DES TIREURS'!C$74:C$244,'FEUILLE D''INSCRIPTION'!S50)","v":1991},{"$f":"INDEX('FEUILLE D''INSCRIPTION'!U$7:U$15,'FEUILLE D''INSCRIPTION'!T50)","v":"ELITE"},{"$f":"INDEX('LISTE DES TIREURS'!G$8:G$82,'FEUILLE D''INSCRIPTION'!V50)","v":"LE COUSIMBERT LMB"},"M",14,"LIEBHERR MACHINES BULLE SA","A",{"$f":"INDEX('LISTE DES TIREURS'!D$74:D$244,'FEUILLE D''INSCRIPTION'!S50)","v":"F57 / M"},null,null,null,{"$f":"COUNTIFS($S$7:$S$181,S50)","v":1},41,2,null,12]
[null,null,null,null,null,{"$f":"INDEX('LISTE DES TIREURS'!B$74:B$244,'FEUILLE D''INSCRIPTION'!S51)","v":"WINKLER ANDREAS"},{"$f":"INDEX('LISTE DES TIREURS'!C$74:C$244,'FEUILLE D''INSCRIPTION'!S51)","v":1982},{"$f":"INDEX('FEUILLE D''INSCRIPTION'!U$7:U$15,'FEUILLE D''INSCRIPTION'!T51)","v":"ELITE"},{"$f":"INDEX('LISTE DES TIREURS'!G$8:G$82,'FEUILLE D''INSCRIPTION'!V51)","v":"LE COUSIMBERT LMB"},"L",14,"LIEBHERR MACHINES BULLE SA","A",{"$f":"INDEX('LISTE DES TIREURS'!D$74:D$244,'FEUILLE D''INSCRIPTION'!S51)","v":"F90"},null,null,null,{"$f":"COUNTIFS($S$7:$S$181,S51)","v":1},108,2,null,12]
[null,null,null,null,null,{"$f":"INDEX('LISTE DES TIREURS'!B$74:B$244,'FEUILLE D''INSCRIPTION'!S52)","v":"KENFAR AMAR"},{"$f":"INDEX('LISTE DES TIREURS'!C$74:C$244,'FEUILLE D''INSCRIPTION'!S52)","v":1975},{"$f":"INDEX('FEUILLE D''INSCRIPTION'!U$7:U$15,'FEUILLE D''INSCRIPTION'!T52)","v":"ELITE"},{"$f":"INDEX('LISTE DES TIREURS'!G$8:G$82,'FEUILLE D''INSCRIPTION'!V52)","v":"LE COUSIMBERT LMB"},"M",14,"LIEBHERR MACHINES BULLE SA","A",{"$f":"INDEX('LISTE DES TIREURS'!D$74:D$244,'FEUILLE D''INSCRIPTION'!S52)","v":"F90"},null,null,null,{"$f":"IF(S52<=1,\"\",COUNTIFS($S$7:$S$181,S52))","v":1},57,2,null,12]
[null,null,null,null,null,{"$f":"INDEX('LISTE DES TIREURS'!B$74:B$244,'FEUILLE D''INSCRIPTION'!S53)","v":"ROUX STEFAN"},{"$f":"INDEX('LISTE DES TIREURS'!C$74:C$244,'FEUILLE D''INSCRIPTION'!S53)","v":1964},{"$f":"INDEX('FEUILLE D''INSCRIPTION'!U$7:U$15,'FEUILLE D''INSCRIPTION'!T53)","v":"ELITE"},{"$f":"INDEX('LISTE DES TIREURS'!G$8:G$82,'FEUILLE D''INSCRIPTION'!V53)","v":"LE COUSIMBERT LMB"},{"$f":"INDEX('LISTE DES TIREURS'!F$8:F$82,'FEUILLE D''INSCRIPTION'!V53)","v":0},14,"LIEBHERR MACHINES BULLE SA","A",{"$f":"INDEX('LISTE DES TIREURS'!D$74:D$244,'FEUILLE D''INSCRIPTION'!S53)","v":"F90"},null,null,null,1,88,2,null,12]
[]
[null,null,null,null,null,{"$f":"INDEX('LISTE DES TIREURS'!B$74:B$244,'FEUILLE D''INSCRIPTION'!S55)","v":"WALCH JORIS"},{"$f":"INDEX('LISTE DES TIREURS'!C$74:C$244,'FEUILLE D''INSCRIPTION'!S55)","v":1989},{"$f":"INDEX('FEUILLE D''INSCRIPTION'!U$7:U$15,'FEUILLE D''INSCRIPTION'!T55)","v":"ELITE"},{"$f":"INDEX('LISTE DES TIREURS'!G$8:G$82,'FEUILLE D''INSCRIPTION'!V55)","v":"LES PORTES LMB"},"S",14,"LIEBHERR MACHINES BULLE SA","A",{"$f":"INDEX('LISTE DES TIREURS'!D$74:D$244,'FEUILLE D''INSCRIPTION'!S55)","v":"F90"},null,null,null,{"$f":"COUNTIFS($S$7:$S$181,S55)","v":1},106,2,null,20]
[null,null,null,null,null,{"$f":"INDEX('LISTE DES TIREURS'!B$74:B$244,'FEUILLE D''INSCRIPTION'!S56)","v":"WINKWORTH JAMES"},{"$f":"INDEX('LISTE DES TIREURS'!C$74:C$244,'FEUILLE D''INSCRIPTION'!S56)","v":1996},{"$f":"INDEX('FEUILLE D''INSCRIPTION'!U$7:U$15,'FEUILLE D''INSCRIPTION'!T56)","v":"ELITE"},{"$f":"INDEX('LISTE DES TIREURS'!G$8:G$82,'FEUILLE D''INSCRIPTION'!V56)","v":"LES PORTES LMB"},"M",14,"LIEBHERR MACHINES BULLE SA","A",{"$f":"INDEX('LISTE DES TIREURS'!D$74:D$244,'FEUILLE D''INSCRIPTION'!S56)","v":"F90"},null,null,null,{"$f":"COUNTIFS($S$7:$S$181,S56)","v":1},109,2,null,20]
[null,null,null,null,null,{"$f":"INDEX('LISTE DES TIREURS'!B$74:B$244,'FEUILLE D''INSCRIPTION'!S57)","v":"MENOUD SONJA"},{"$f":"INDEX('LISTE DES TIREURS'!C$74:C$244,'FEUILLE D''INSCRIPTION'!S57)","v":1952},{"$f":"INDEX('FEUILLE D''INSCRIPTION'!U$7:U$15,'FEUILLE D''INSCRIPTION'!T57)","v":"ELITE"},{"$f":"INDEX('LISTE DES TIREURS'!G$8:G$82,'FEUILLE D''INSCRIPTION'!V57)","v":"LES PORTES LMB"},"L",14,"LIEBHERR MACHINES BULLE SA","A",{"$f":"INDEX('LISTE DES TIREURS'!D$74:D$244,'FEUILLE D''INSCRIPTION'!S57)","v":"F90"},null,null,null,{"$f":"COUNTIFS($S$7:$S$181,S57)","v":1},71,2,null,20]
[null,null,null,null,null,{"$f":"INDEX('LISTE DES TIREURS'!B$74:B$244,'FEUILLE D''INSCRIPTION'!S58)","v":"FERRARI WILLIAM"},{"$f":"INDEX('LISTE DES TIREURS'!C$74:C$244,'FEUILLE D''INSCRIPTION'!S58)","v":1970},{"$f":"INDEX('FEUILLE D''INSCRIPTION'!U$7:U$15,'FEUILLE D''INSCRIPTION'!T58)","v":"ELITE"},{"$f":"INDEX('LISTE DES TIREURS'!G$8:G$82,'FEUILLE D''INSCRIPTION'!V58)","v":"LES PORTES LMB"},"L",14,"LIEBHERR MACHINES BULLE SA","A",{"$f":"INDEX('LISTE DES TIREURS'!D$74:D$244,'FEUILLE D''INSCRIPTION'!S58)","v":"F90"},null,null,null,{"$f":"IF(S58<=1,\"\",COUNTIFS($S$7:$S$181,S58))","v":1},38,2,null,20]
[null,null,null,null,null,{"$f":"INDEX('LISTE DES TIREURS'!B$74:B$244,'FEUILLE D''INSCRIPTION'!S59)","v":0},{"$f":"INDEX('LISTE DES TIREURS'!C$74:C$244,'FEUILLE D''INSCRIPTION'!S59)","v":0},{"$f":"INDEX('FEUILLE D''INSCRIPTION'!U$7:U$15,'FEUILLE D''INSCRIPTION'!T59)","v":"ELITE"},{"$f":"INDEX('LISTE DES TIREURS'!G$8:G$82,'FEUILLE D''INSCRIPTION'!V59)","v":"LES PORTES LMB"},"L","","","",{"$f":"INDEX('LISTE DES TIREURS'!D$74:D$244,'FEUILLE D''INSCRIPTION'!S59)","v":0},null,null,null,1,127,2,null,20]
[]
[null,null,null,null,null,{"$f":"INDEX('LISTE DES TIREURS'!B$74:B$244,'FEUILLE D''INSCRIPTION'!S61)","v":0},{"$f":"INDEX('LISTE DES TIREURS'!C$74:C$244,'FEUILLE D''INSCRIPTION'!S61)","v":0},{"$f":"INDEX('FEUILLE D''INSCRIPTION'!U$7:U$15,'FEUILLE D''INSCRIPTION'!T61)","v":"ELITE"},{"$f":"INDEX('LISTE DES TIREURS'!G$8:G$82,'FEUILLE D''INSCRIPTION'!V61)","v":"LE VANIL DE L'ECRI LMB"},"XL","","","",{"$f":"INDEX('LISTE DES TIREURS'!D$74:D$244,'FEUILLE D''INSCRIPTION'!S61)","v":0},null,null,null,{"$f":"COUNTIFS($S$7:$S$181,S61)","v":1},131,2,null,16]
[null,null,null,null,null,{"$f":"INDEX('LISTE DES TIREURS'!B$74:B$244,'FEUILLE D''INSCRIPTION'!S62)","v":"FUGA REXHEP"},{"$f":"INDEX('LISTE DES TIREURS'!C$74:C$244,'FEUILLE D''INSCRIPTION'!S62)","v":1993},{"$f":"INDEX('FEUILLE D''INSCRIPTION'!U$7:U$15,'FEUILLE D''INSCRIPTION'!T62)","v":"ELITE"},{"$f":"INDEX('LISTE DES TIREURS'!G$8:G$82,'FEUILLE D''INSCRIPTION'!V62)","v":"LE VANIL DE L'ECRI LMB"},"XL",14,"LIEBHERR MACHINES BULLE SA","A",{"$f":"INDEX('LISTE DES TIREURS'!D$74:D$244,'FEUILLE D''INSCRIPTION'!S62)","v":"F90"},null,null,null,{"$f":"COUNTIFS($S$7:$S$181,S62)","v":1},40,2,null,16]
[null,null,null,null,null,{"$f":"INDEX('LISTE DES TIREURS'!B$74:B$244,'FEUILLE D''INSCRIPTION'!S63)","v":"LEONARD DAMIEN"},{"$f":"INDEX('LISTE DES TIREURS'!C$74:C$244,'FEUILLE D''INSCRIPTION'!S63)","v":1993},{"$f":"INDEX('FEUILLE D''INSCRIPTION'!U$7:U$15,'FEUILLE D''INSCRIPTION'!T63)","v":"ELITE"},{"$f":"INDEX('LISTE DES TIREURS'!G$8:G$82,'FEUILLE D''INSCRIPTION'!V63)","v":"LE VANIL DE L'ECRI LMB"},{"$f":"INDEX('LISTE DES TIREURS'!F$8:F$82,'FEUILLE D''INSCRIPTION'!V63)","v":0},14,"LIEBHERR MACHINES BULLE SA","A",{"$f":"INDEX('LISTE DES TIREURS'!D$74:D$244,'FEUILLE D''INSCRIPTION'!S63)","v":"F90"},null,null,null,{"$f":"COUNTIFS($S$7:$S$181,S63)","v":1},60,2,null,16]
[null,null,null,null,null,{"$f":"INDEX('LISTE DES TIREURS'!B$74:B$244,'FEUILLE D''INSCRIPTION'!S64)","v":"LETANG LUDOVIC"},{"$f":"INDEX('LISTE DES TIREURS'!C$74:C$244,'FEUILLE D''INSCRIPTION'!S64)","v":0},{"$f":"INDEX('FEUILLE D''INSCRIPTION'!U$7:U$15,'FEUILLE D''INSCRIPTION'!T64)","v":"ELITE"},{"$f":"INDEX('LISTE DES TIREURS'!G$8:G$82,'FEUILLE D''INSCRIPTION'!V64)","v":"LE VANIL DE L'ECRI LMB"},"M",14,"LIEBHERR MACHINES BULLE SA","A",{"$f":"INDEX('LISTE DES TIREURS'!D$74:D$244,'FEUILLE D''INSCRIPTION'!S64)","v":"F90"},null,null,null,{"$f":"IF(S64<=1,\"\",COUNTIFS($S$7:$S$181,S64))","v":1},61,2,null,16]
[null,null,null,null,null,{"$f":"INDEX('LISTE DES TIREURS'!B$74:B$244,'FEUILLE D''INSCRIPTION'!S65)","v":"SOULIER PIERRE"},{"$f":"INDEX('LISTE DES TIREURS'!C$74:C$244,'FEUILLE D''INSCRIPTION'!S65)","v":1989},{"$f":"INDEX('FEUILLE D''INSCRIPTION'!U$7:U$15,'FEUILLE D''INSCRIPTION'!T65)","v":"ELITE"},{"$f":"INDEX('LISTE DES TIREURS'!G$8:G$82,'FEUILLE D''INSCRIPTION'!V65)","v":"LE VANIL DE L'ECRI LMB"},"L",14,"LIEBHERR MACHINES BULLE SA","A",{"$f":"INDEX('LISTE DES TIREURS'!D$74:D$244,'FEUILLE D''INSCRIPTION'!S65)","v":"F90"},null,null,null,1,90,2,null,16]
[]
[null,null,null,null,null,{"$f":"INDEX('LISTE DES TIREURS'!B$74:B$244,'FEUILLE D''INSCRIPTION'!S67)","v":"WIRTHS STEFAN"},{"$f":"INDEX('LISTE DES TIREURS'!C$74:C$244,'FEUILLE D''INSCRIPTION'!S67)","v":1984},{"$f":"INDEX('FEUILLE D''INSCRIPTION'!U$7:U$15,'FEUILLE D''INSCRIPTION'!T67)","v":"ELITE"},{"$f":"INDEX('LISTE DES TIREURS'!G$8:G$82,'FEUILLE D''INSCRIPTION'!V67)","v":"LA DENT DE BROC LMB"},"M",14,"LIEBHERR MACHINES BULLE SA","A",{"$f":"INDEX('LISTE DES TIREURS'!D$74:D$244,'FEUILLE D''INSCRIPTION'!S67)","v":"F90"},null,null,null,{"$f":"COUNTIFS($S$7:$S$181,S67)","v":1},110,2,null,6]
[null,null,null,null,null,{"$f":"INDEX('LISTE DES TIREURS'!B$74:B$244,'FEUILLE D''INSCRIPTION'!S68)","v":"BERGER JEAN-PHILIPPE"},{"$f":"INDEX('LISTE DES TIREURS'!C$74:C$244,'FEUILLE D''INSCRIPTION'!S68)","v":1975},{"$f":"INDEX('FEUILLE D''INSCRIPTION'!U$7:U$15,'FEUILLE D''INSCRIPTION'!T68)","v":"ELITE"},{"$f":"INDEX('LISTE DES TIREURS'!G$8:G$82,'FEUILLE D''INSCRIPTION'!V68)","v":"LA DENT DE BROC LMB"},"M",14,"LIEBHERR MACHINES BULLE SA","A",{"$f":"INDEX('LISTE DES TIREURS'!D$74:D$244,'FEUILLE D''INSCRIPTION'!S68)","v":"F90"},null,null,null,{"$f":"COUNTIFS($S$7:$S$181,S68)","v":1},13,2,null,6]
[null,null,null,null,null,{"$f":"INDEX('LISTE DES TIREURS'!B$74:B$244,'FEUILLE D''INSCRIPTION'!S69)","v":"MORENO MARK"},{"$f":"INDEX('LISTE DES TIREURS'!C$74:C$244,'FEUILLE D''INSCRIPTION'!S69)","v":1985},{"$f":"INDEX('FEUILLE D''INSCRIPTION'!U$7:U$15,'FEUILLE D''INSCRIPTION'!T69)","v":"ELITE"},{"$f":"INDEX('LISTE DES TIREURS'!G$8:G$82,'FEUILLE D''INSCRIPTION'!V69)","v":"LA DENT DE BROC LMB"},{"$f":"INDEX('LISTE DES TIREURS'!F$8:F$82,'FEUILLE D''INSCRIPTION'!V69)","v":0},14,"LIEBHERR MACHINES BULLE SA","A",{"$f":"INDEX('LISTE DES TIREURS'!D$74:D$244,'FEUILLE D''INSCRIPTION'!S69)","v":"F90"},null,null,null,{"$f":"COUNTIFS($S$7:$S$181,S69)","v":1},73,2,null,6]
[null,null,null,null,null,{"$f":"INDEX('LISTE DES TIREURS'!B$74:B$244,'FEUILLE D''INSCRIPTION'!S70)","v":"MOURA OLIVIER"},{"$f":"INDEX('LISTE DES TIREURS'!C$74:C$244,'FEUILLE D''INSCRIPTION'!S70)","v":1965},{"$f":"INDEX('FEUILLE D''INSCRIPTION'!U$7:U$15,'FEUILLE D''INSCRIPTION'!T70)","v":"ELITE"},{"$f":"INDEX('LISTE DES TIREURS'!G$8:G$82,'FEUILLE D''INSCRIPTION'!V70)","v":"LA DENT DE BROC LMB"},"S",14,"LIEBHERR MACHINES BULLE SA","A",{"$f":"INDEX('LISTE DES TIREURS'!D$74:D$244,'FEUILLE D''INSCRIPTION'!S70)","v":"F90"},null,null,null,{"$f":"IF(S70<=1,\"\",COUNTIFS($S$7:$S$181,S70))","v":1},75,2,null,6]
[null,null,null,null,null,{"$f":"INDEX('LISTE DES TIREURS'!B$74:B$244,'FEUILLE D''INSCRIPTION'!S71)","v":"CURRAT JEAN-MICHEL"},{"$f":"INDEX('LISTE DES TIREURS'!C$74:C$244,'FEUILLE D''INSCRIPTION'!S71)","v":1962},{"$f":"INDEX('FEUILLE D''INSCRIPTION'!U$7:U$15,'FEUILLE D''INSCRIPTION'!T71)","v":"ELITE"},{"$f":"INDEX('LISTE DES TIREURS'!G$8:G$82,'FEUILLE D''INSCRIPTION'!V71)","v":"LA DENT DE BROC LMB"},"L",14,"LIEBHERR MACHINES BULLE SA","A",{"$f":"INDEX('LISTE DES TIREURS'!D$74:D$244,'FEUILLE D''INSCRIPTION'!S71)","v":"F90"},null,null,null,1,26,2,null,6]
[]
[null,null,null,null,null,{"$f":"INDEX('LISTE DES TIREURS'!B$74:B$244,'FEUILLE D''INSCRIPTION'!S73)","v":"ZUENDORF ECKEHARD"},{"$f":"INDEX('LISTE DES TIREURS'!C$74:C$244,'FEUILLE D''INSCRIPTION'!S73)","v":1970},{"$f":"INDEX('FEUILLE D''INSCRIPTION'!U$7:U$15,'FEUILLE D''INSCRIPTION'!T73)","v":"ELITE"},{"$f":"INDEX('LISTE DES TIREURS'!G$8:G$82,'FEUILLE D''INSCRIPTION'!V73)","v":"LE VANIL CARRE LMB"},"XXL",{"$f":"IF(F73>0,$I$3,\"\")","v":14},{"$f":"IF(F73>0,$F$2,\"\")","v":"LIEBHERR MACHINES BULLE SA"},{"$f":"IF(F73>0,$G$3,\"\")","v":"A"},{"$f":"INDEX('LISTE DES TIREURS'!D$74:D$244,'FEUILLE D''INSCRIPTION'!S73)","v":"F90"},null,null,null,{"$f":"COUNTIFS($S$7:$S$181,S73)","v":1},115,2,null,15]
[null,null,null,null,null,{"$f":"INDEX('LISTE DES TIREURS'!B$74:B$244,'FEUILLE D''INSCRIPTION'!S74)","v":"HURUGLICA ARBER"},{"$f":"INDEX('LISTE DES TIREURS'!C$74:C$244,'FEUILLE D''INSCRIPTION'!S74)","v":1993},{"$f":"INDEX('FEUILLE D''INSCRIPTION'!U$7:U$15,'FEUILLE D''INSCRIPTION'!T74)","v":"ELITE"},{"$f":"INDEX('LISTE DES TIREURS'!G$8:G$82,'FEUILLE D''INSCRIPTION'!V74)","v":"LE VANIL CARRE LMB"},"L",14,"LIEBHERR MACHINES BULLE SA","A",{"$f":"INDEX('LISTE DES TIREURS'!D$74:D$244,'FEUILLE D''INSCRIPTION'!S74)","v":"F90"},null,null,null,{"$f":"COUNTIFS($S$7:$S$181,S74)","v":1},53,2,null,15]
[null,null,null,null,null,{"$f":"INDEX('LISTE DES TIREURS'!B$74:B$244,'FEUILLE D''INSCRIPTION'!S75)","v":"NJOH JEAN-ROBERT"},{"$f":"INDEX('LISTE DES TIREURS'!C$74:C$244,'FEUILLE D''INSCRIPTION'!S75)","v":1980},{"$f":"INDEX('FEUILLE D''INSCRIPTION'!U$7:U$15,'FEUILLE D''INSCRIPTION'!T75)","v":"ELITE"},{"$f":"INDEX('LISTE DES TIREURS'!G$8:G$82,'FEUILLE D''INSCRIPTION'!V75)","v":"LE VANIL CARRE LMB"},{"$f":"INDEX('LISTE DES TIREURS'!F$8:F$82,'FEUILLE D''INSCRIPTION'!V75)","v":0},14,"LIEBHERR MACHINES BULLE SA","A",{"$f":"INDEX('LISTE DES TIREURS'!D$74:D$244,'FEUILLE D''INSCRIPTION'!S75)","v":"F90"},null,null,null,{"$f":"COUNTIFS($S$7:$S$181,S75)","v":1},76,2,null,15]
[null,null,null,null,null,{"$f":"INDEX('LISTE DES TIREURS'!B$74:B$244,'FEUILLE D''INSCRIPTION'!S76)","v":0},{"$f":"INDEX('LISTE DES TIREURS'!C$74:C$244,'FEUILLE D''INSCRIPTION'!S76)","v":0},{"$f":"INDEX('FEUILLE D''INSCRIPTION'!U$7:U$15,'FEUILLE D''INSCRIPTION'!T76)","v":"ELITE"},{"$f":"INDEX('LISTE DES TIREURS'!G$8:G$82,'FEUILLE D''INSCRIPTION'!V76)","v":"LE VANIL CARRE LMB"},"XL","","","",{"$f":"INDEX('LISTE DES TIREURS'!D$74:D$244,'FEUILLE D''INSCRIPTION'!S76)","v":0},null,null,null,{"$f":"IF(S76<=1,\"\",COUNTIFS($S$7:$S$181,S76))","v":1},129,2,null,15]
[null,null,null,null,null,{"$f":"INDEX('LISTE DES TIREURS'!B$74:B$244,'FEUILLE D''INSCRIPTION'!S77)","v":0},{"$f":"INDEX('LISTE DES TIREURS'!C$74:C$244,'FEUILLE D''INSCRIPTION'!S77)","v":0},{"$f":"INDEX('FEUILLE D''INSCRIPTION'!U$7:U$15,'FEUILLE D''INSCRIPTION'!T77)","v":"ELITE"},{"$f":"INDEX('LISTE DES TIREURS'!G$8:G$82,'FEUILLE D''INSCRIPTION'!V77)","v":"LE VANIL CARRE LMB"},"S","","","",{"$f":"INDEX('LISTE DES TIREURS'!D$74:D$244,'FEUILLE D''INSCRIPTION'!S77)","v":0},null,null,null,1,116,2,null,15]
[]
[null,null,null,null,null,{"$f":"INDEX('LISTE DES TIREURS'!B$74:B$244,'FEUILLE D''INSCRIPTION'!S79)","v":"GAGO DA SILVA CRUZ RUI JORGE"},{"$f":"INDEX('LISTE DES TIREURS'!C$74:C$244,'FEUILLE D''INSCRIPTION'!S79)","v":1973},{"$f":"INDEX('FEUILLE D''INSCRIPTION'!U$7:U$15,'FEUILLE D''INSCRIPTION'!T79)","v":"ELITE"},{"$f":"INDEX('LISTE DES TIREURS'!G$8:G$82,'FEUILLE D''INSCRIPTION'!V79)","v":"LE KAISEREGG LMB"},{"$f":"INDEX('LISTE DES TIREURS'!F$8:F$82,'FEUILLE D''INSCRIPTION'!V79)","v":0},14,"LIEBHERR MACHINES BULLE SA","A",{"$f":"INDEX('LISTE DES TIREURS'!D$74:D$244,'FEUILLE D''INSCRIPTION'!S79)","v":"F90"},null,null,null,{"$f":"COUNTIFS($S$7:$S$181,S79)","v":1},42,2,null,13]
[null,null,null,null,null,{"$f":"INDEX('LISTE DES TIREURS'!B$74:B$244,'FEUILLE D''INSCRIPTION'!S80)","v":"GALLAND ANTOINE"},{"$f":"INDEX('LISTE DES TIREURS'!C$74:C$244,'FEUILLE D''INSCRIPTION'!S80)","v":1986},{"$f":"INDEX('FEUILLE D''INSCRIPTION'!U$7:U$15,'FEUILLE D''INSCRIPTION'!T80)","v":"ELITE"},{"$f":"INDEX('LISTE DES TIREURS'!G$8:G$82,'FEUILLE D''INSCRIPTION'!V80)","v":"LE KAISEREGG LMB"},{"$f":"INDEX('LISTE DES TIREURS'!F$8:F$82,'FEUILLE D''INSCRIPTION'!V80)","v":0},14,"LIEBHERR MACHINES BULLE SA","A",{"$f":"INDEX('LISTE DES TIREURS'!D$74:D$244,'FEUILLE D''INSCRIPTION'!S80)","v":"F90"},null,null,null,{"$f":"COUNTIFS($S$7:$S$181,S80)","v":1},43,2,null,13]
[null,null,null,null,null,{"$f":"INDEX('LISTE DES TIREURS'!B$74:B$244,'FEUILLE D''INSCRIPTION'!S81)","v":"GLORIANT ANTOINE"},{"$f":"INDEX('LISTE DES TIREURS'!C$74:C$244,'FEUILLE D''INSCRIPTION'!S81)","v":1988},{"$f":"INDEX('FEUILLE D''INSCRIPTION'!U$7:U$15,'FEUILLE D''INSCRIPTION'!T81)","v":"ELITE"},{"$f":"INDEX('LISTE DES TIREURS'!G$8:G$82,'FEUILLE D''INSCRIPTION'!V81)","v":"LE KAISEREGG LMB"},"L",14,"LIEBHERR MACHINES BULLE SA","A",{"$f":"INDEX('LISTE DES TIREURS'!D$74:D$244,'FEUILLE D''INSCRIPTION'!S81)","v":"F90"},null,1,null,{"$f":"COUNTIFS($S$7:$S$181,S81)","v":1},48,2,null,13]
[null,null,null,null,null,{"$f":"INDEX('LISTE DES TIREURS'!B$74:B$244,'FEUILLE D''INSCRIPTION'!S82)","v":"VIELLE VINCENT"},{"$f":"INDEX('LISTE DES TIREURS'!C$74:C$244,'FEUILLE D''INSCRIPTION'!S82)","v":1992},{"$f":"INDEX('FEUILLE D''INSCRIPTION'!U$7:U$15,'FEUILLE D''INSCRIPTION'!T82)","v":"ELITE"},{"$f":"INDEX('LISTE DES TIREURS'!G$8:G$82,'FEUILLE D''INSCRIPTION'!V82)","v":"LE KAISEREGG LMB"},{"$f":"INDEX('LISTE DES TIREURS'!F$8:F$82,'FEUILLE D''INSCRIPTION'!V82)","v":0},14,"LIEBHERR MACHINES BULLE SA","A",{"$f":"INDEX('LISTE DES TIREURS'!D$74:D$244,'FEUILLE D''INSCRIPTION'!S82)","v":"F90"},null,null,null,{"$f":"IF(S82<=1,\"\",COUNTIFS($S$7:$S$181,S82))","v":1},105,2,null,13]
[null,null,null,null,null,{"$f":"INDEX('LISTE DES TIREURS'!B$74:B$244,'FEUILLE D''INSCRIPTION'!S83)","v":"RAMADANI REFIK"},{"$f":"INDEX('LISTE DES TIREURS'!C$74:C$244,'FEUILLE D''INSCRIPTION'!S83)","v":0},{"$f":"INDEX('FEUILLE D''INSCRIPTION'!U$7:U$15,'FEUILLE D''INSCRIPTION'!T83)","v":"ELITE"},{"$f":"INDEX('LISTE DES TIREURS'!G$8:G$82,'FEUILLE D''INSCRIPTION'!V83)","v":"LE KAISEREGG LMB"},"M",14,"LIEBHERR MACHINES BULLE SA","A",{"$f":"INDEX('LISTE DES TIREURS'!D$74:D$244,'FEUILLE D''INSCRIPTION'!S83)","v":"F90"},null,null,null,1,84,2,null,13]
[]
[null,null,null,null,null,{"$f":"INDEX('LISTE DES TIREURS'!B$74:B$244,'FEUILLE D''INSCRIPTION'!S85)","v":0},1988,{"$f":"INDEX('FEUILLE D''INSCRIPTION'!U$7:U$15,'FEUILLE D''INSCRIPTION'!T85)","v":"ELITE"},{"$f":"INDEX('LISTE DES TIREURS'!G$8:G$82,'FEUILLE D''INSCRIPTION'!V85)","v":"LA DENT DE LYS LMB"},"S","","","",{"$f":"INDEX('LISTE DES TIREURS'!D$74:D$244,'FEUILLE D''INSCRIPTION'!S85)","v":0},null,null,null,{"$f":"COUNTIFS($S$7:$S$181,S85)","v":1},132,2,null,7]
[null,null,null,null,null,{"$f":"INDEX('LISTE DES TIREURS'!B$74:B$244,'FEUILLE D''INSCRIPTION'!S86)","v":"NUSSBAUMER ANTOINE "},{"$f":"INDEX('LISTE DES TIREURS'!C$74:C$244,'FEUILLE D''INSCRIPTION'!S86)","v":1983},{"$f":"INDEX('FEUILLE D''INSCRIPTION'!U$7:U$15,'FEUILLE D''INSCRIPTION'!T86)","v":"ELITE"},{"$f":"INDEX('LISTE DES TIREURS'!G$8:G$82,'FEUILLE D''INSCRIPTION'!V86)","v":"LA DENT DE LYS LMB"},{"$f":"INDEX('LISTE DES TIREURS'!F$8:F$82,'FEUILLE D''INSCRIPTION'!V86)","v":0},14,"LIEBHERR MACHINES BULLE SA","A",{"$f":"INDEX('LISTE DES TIREURS'!D$74:D$244,'FEUILLE D''INSCRIPTION'!S86)","v":"F90"},null,null,null,{"$f":"COUNTIFS($S$7:$S$181,S86)","v":1},77,2,null,7]
[null,null,null,null,null,{"$f":"INDEX('LISTE DES TIREURS'!B$74:B$244,'FEUILLE D''INSCRIPTION'!S87)","v":"RABOUD CLAUDINE"},{"$f":"INDEX('LISTE DES TIREURS'!C$74:C$244,'FEUILLE D''INSCRIPTION'!S87)","v":1981},{"$f":"INDEX('FEUILLE D''INSCRIPTION'!U$7:U$15,'FEUILLE D''INSCRIPTION'!T87)","v":"ELITE"},{"$f":"INDEX('LISTE DES TIREURS'!G$8:G$82,'FEUILLE D''INSCRIPTION'!V87)","v":"LA DENT DE LYS LMB"},"XXL",14,"LIEBHERR MACHINES BULLE SA","A",{"$f":"INDEX('LISTE DES TIREURS'!D$74:D$244,'FEUILLE D''INSCRIPTION'!S87)","v":"F90"},null,null,null,{"$f":"COUNTIFS($S$7:$S$181,S87)","v":1},83,2,null,7]
[null,null,null,null,null,{"$f":"INDEX('LISTE DES TIREURS'!B$74:B$244,'FEUILLE D''INSCRIPTION'!S88)","v":"ARIAS JOSE"},{"$f":"INDEX('LISTE DES TIREURS'!C$74:C$244,'FEUILLE D''INSCRIPTION'!S88)","v":1971},{"$f":"INDEX('FEUILLE D''INSCRIPTION'!U$7:U$15,'FEUILLE D''INSCRIPTION'!T88)","v":"DAME"},{"$f":"INDEX('LISTE DES TIREURS'!G$8:G$82,'FEUILLE D''INSCRIPTION'!V88)","v":"LA DENT DE LYS LMB"},"XS",14,"LIEBHERR MACHINES BULLE SA","A",{"$f":"INDEX('LISTE DES TIREURS'!D$74:D$244,'FEUILLE D''INSCRIPTION'!S88)","v":"F90"},null,null,null,{"$f":"IF(S88<=1,\"\",COUNTIFS($S$7:$S$181,S88))","v":1},6,5,null,7]
[null,null,null,null,null,{"$f":"INDEX('LISTE DES TIREURS'!B$74:B$244,'FEUILLE D''INSCRIPTION'!S89)","v":"BOICHAT MICHEL"},{"$f":"INDEX('LISTE DES TIREURS'!C$74:C$244,'FEUILLE D''INSCRIPTION'!S89)","v":1952},{"$f":"INDEX('FEUILLE D''INSCRIPTION'!U$7:U$15,'FEUILLE D''INSCRIPTION'!T89)","v":"ELITE"},{"$f":"INDEX('LISTE DES TIREURS'!G$8:G$82,'FEUILLE D''INSCRIPTION'!V89)","v":"LA DENT DE LYS LMB"},{"$f":"INDEX('LISTE DES TIREURS'!F$8:F$82,'FEUILLE D''INSCRIPTION'!V89)","v":0},14,"LIEBHERR MACHINES BULLE SA","A",{"$f":"INDEX('LISTE DES TIREURS'!D$74:D$244,'FEUILLE D''INSCRIPTION'!S89)","v":"F90"},null,null,null,1,16,2,null,7]
[]
[null,null,null,null,null,{"$f":"INDEX('LISTE DES TIREURS'!B$74:B$244,'FEUILLE D''INSCRIPTION'!S91)","v":"TOPOROWICZ CIORCERO ELISSON"},{"$f":"INDEX('LISTE DES TIREURS'!C$74:C$244,'FEUILLE D''INSCRIPTION'!S91)","v":1989},{"$f":"INDEX('FEUILLE D''INSCRIPTION'!U$7:U$15,'FEUILLE D''INSCRIPTION'!T91)","v":"ELITE"},{"$f":"INDEX('LISTE DES TIREURS'!G$8:G$82,'FEUILLE D''INSCRIPTION'!V91)","v":"LA HOCHMATT LMB"},"XXL",{"$f":"IF(F91>0,$I$3,\"\")","v":14},{"$f":"IF(F91>0,$F$2,\"\")","v":"LIEBHERR MACHINES BULLE SA"},{"$f":"IF(F91>0,$G$3,\"\")","v":"A"},{"$f":"INDEX('LISTE DES TIREURS'!D$74:D$244,'FEUILLE D''INSCRIPTION'!S91)","v":"F90"},null,null,null,{"$f":"COUNTIFS($S$7:$S$181,S91)","v":1},98,2,null,10]
[null,null,null,null,null,{"$f":"INDEX('LISTE DES TIREURS'!B$74:B$244,'FEUILLE D''INSCRIPTION'!S92)","v":"YASYN SAID"},{"$f":"INDEX('LISTE DES TIREURS'!C$74:C$244,'FEUILLE D''INSCRIPTION'!S92)","v":1989},{"$f":"INDEX('FEUILLE D''INSCRIPTION'!U$7:U$15,'FEUILLE D''INSCRIPTION'!T92)","v":"ELITE"},{"$f":"INDEX('LISTE DES TIREURS'!G$8:G$82,'FEUILLE D''INSCRIPTION'!V92)","v":"LA HOCHMATT LMB"},"S",14,"LIEBHERR MACHINES BULLE SA","A",{"$f":"INDEX('LISTE DES TIREURS'!D$74:D$244,'FEUILLE D''INSCRIPTION'!S92)","v":"F90"},null,null,null,{"$f":"COUNTIFS($S$7:$S$181,S92)","v":1},112,2,null,10]
[null,null,null,null,null,{"$f":"INDEX('LISTE DES TIREURS'!B$74:B$244,'FEUILLE D''INSCRIPTION'!S93)","v":"ZBINDEN CAROLE"},{"$f":"INDEX('LISTE DES TIREURS'!C$74:C$244,'FEUILLE D''INSCRIPTION'!S93)","v":1979},{"$f":"INDEX('FEUILLE D''INSCRIPTION'!U$7:U$15,'FEUILLE D''INSCRIPTION'!T93)","v":"ELITE"},{"$f":"INDEX('LISTE DES TIREURS'!G$8:G$82,'FEUILLE D''INSCRIPTION'!V93)","v":"LA HOCHMATT LMB"},"S",14,"LIEBHERR MACHINES BULLE SA","A",{"$f":"INDEX('LISTE DES TIREURS'!D$74:D$244,'FEUILLE D''INSCRIPTION'!S93)","v":"F90"},null,null,null,{"$f":"COUNTIFS($S$7:$S$181,S93)","v":1},113,2,null,10]
[null,null,null,null,null,{"$f":"INDEX('LISTE DES TIREURS'!B$74:B$244,'FEUILLE D''INSCRIPTION'!S94)","v":"ZIBOUCHE FARID"},{"$f":"INDEX('LISTE DES TIREURS'!C$74:C$244,'FEUILLE D''INSCRIPTION'!S94)","v":1988},{"$f":"INDEX('FEUILLE D''INSCRIPTION'!U$7:U$15,'FEUILLE D''INSCRIPTION'!T94)","v":"ELITE"},{"$f":"INDEX('LISTE DES TIREURS'!G$8:G$82,'FEUILLE D''INSCRIPTION'!V94)","v":"LA HOCHMATT LMB"},"L",14,"LIEBHERR MACHINES BULLE SA","A",{"$f":"INDEX('LISTE DES TIREURS'!D$74:D$244,'FEUILLE D''INSCRIPTION'!S94)","v":"F90"},null,null,null,{"$f":"IF(S94<=1,\"\",COUNTIFS($S$7:$S$181,S94))","v":1},114,2,null,10]
[null,null,null,null,null,{"$f":"INDEX('LISTE DES TIREURS'!B$74:B$244,'FEUILLE D''INSCRIPTION'!S95)","v":"AKCOELTEKIN NAMIK"},{"$f":"INDEX('LISTE DES TIREURS'!C$74:C$244,'FEUILLE D''INSCRIPTION'!S95)","v":1979},{"$f":"INDEX('FEUILLE D''INSCRIPTION'!U$7:U$15,'FEUILLE D''INSCRIPTION'!T95)","v":"ELITE"},{"$f":"INDEX('LISTE DES TIREURS'!G$8:G$82,'FEUILLE D''INSCRIPTION'!V95)","v":"LA HOCHMATT LMB"},{"$f":"INDEX('LISTE DES TIREURS'!F$8:F$82,'FEUILLE D''INSCRIPTION'!V95)","v":0},14,"LIEBHERR MACHINES BULLE SA","A",{"$f":"INDEX('LISTE DES TIREURS'!D$74:D$244,'FEUILLE D''INSCRIPTION'!S95)","v":"F90"},null,null,null,1,2,2,null,10]
[]
[null,null,null,null,null,{"$f":"INDEX('LISTE DES TIREURS'!B$74:B$244,'FEUILLE D''INSCRIPTION'!S97)","v":"DESPONT JOEL"},{"$f":"INDEX('LISTE DES TIREURS'!C$74:C$244,'FEUILLE D''INSCRIPTION'!S97)","v":1975},{"$f":"INDEX('FEUILLE D''INSCRIPTION'!U$7:U$15,'FEUILLE D''INSCRIPTION'!T97)","v":"ELITE"},{"$f":"INDEX('LISTE DES TIREURS'!G$8:G$82,'FEUILLE D''INSCRIPTION'!V97)","v":0},"L",{"$f":"IF(F97>0,$I$3,\"\")","v":14},{"$f":"IF(F97>0,$F$2,\"\")","v":"LIEBHERR MACHINES BULLE SA"},{"$f":"IF(F97>0,$G$3,\"\")","v":"A"},{"$f":"INDEX('LISTE DES TIREURS'!D$74:D$244,'FEUILLE D''INSCRIPTION'!S97)","v":"F90"},null,null,null,{"$f":"COUNTIFS($S$7:$S$181,S97)","v":1},29,2,null,68]
[null,null,null,null,null,{"$f":"INDEX('LISTE DES TIREURS'!B$74:B$244,'FEUILLE D''INSCRIPTION'!S98)","v":"TERRIER ANTOINE"},{"$f":"INDEX('LISTE DES TIREURS'!C$74:C$244,'FEUILLE D''INSCRIPTION'!S98)","v":1995},{"$f":"INDEX('FEUILLE D''INSCRIPTION'!U$7:U$15,'FEUILLE D''INSCRIPTION'!T98)","v":"ELITE"},{"$f":"INDEX('LISTE DES TIREURS'!G$8:G$82,'FEUILLE D''INSCRIPTION'!V98)","v":0},"M",14,"LIEBHERR MACHINES BULLE SA","A",{"$f":"INDEX('LISTE DES TIREURS'!D$74:D$244,'FEUILLE D''INSCRIPTION'!S98)","v":"F90"},null,null,null,{"$f":"COUNTIFS($S$7:$S$181,S98)","v":1},96,2,null,68]
[null,null,null,null,null,{"$f":"INDEX('LISTE DES TIREURS'!B$74:B$244,'FEUILLE D''INSCRIPTION'!S99)","v":"ASLAN YUNUS EMRE"},{"$f":"INDEX('LISTE DES TIREURS'!C$74:C$244,'FEUILLE D''INSCRIPTION'!S99)","v":1996},{"$f":"INDEX('FEUILLE D''INSCRIPTION'!U$7:U$15,'FEUILLE D''INSCRIPTION'!T99)","v":"ELITE"},{"$f":"INDEX('LISTE DES TIREURS'!G$8:G$82,'FEUILLE D''INSCRIPTION'!V99)","v":0},null,14,"LIEBHERR MACHINES BULLE SA","A",{"$f":"INDEX('LISTE DES TIREURS'!D$74:D$244,'FEUILLE D''INSCRIPTION'!S99)","v":"F90"},null,null,null,{"$f":"COUNTIFS($S$7:$S$181,S99)","v":1},7,2,null,68]
[null,null,null,null,null,{"$f":"INDEX('LISTE DES TIREURS'!B$74:B$244,'FEUILLE D''INSCRIPTION'!S100)","v":0},{"$f":"INDEX('LISTE DES TIREURS'!C$74:C$244,'FEUILLE D''INSCRIPTION'!S100)","v":0},{"$f":"INDEX('FEUILLE D''INSCRIPTION'!U$7:U$15,'FEUILLE D''INSCRIPTION'!T100)","v":"ELITE"},{"$f":"INDEX('LISTE DES TIREURS'!G$8:G$82,'FEUILLE D''INSCRIPTION'!V100)","v":0},"S","","","",{"$f":"INDEX('LISTE DES TIREURS'!D$74:D$244,'FEUILLE D''INSCRIPTION'!S100)","v":0},null,null,null,{"$f":"IF(S100<=1,\"\",COUNTIFS($S$7:$S$181,S100))","v":1},123,2,null,68]
[null,null,null,null,null,{"$f":"INDEX('LISTE DES TIREURS'!B$74:B$244,'FEUILLE D''INSCRIPTION'!S101)","v":0},{"$f":"INDEX('LISTE DES TIREURS'!C$74:C$244,'FEUILLE D''INSCRIPTION'!S101)","v":0},{"$f":"INDEX('FEUILLE D''INSCRIPTION'!U$7:U$15,'FEUILLE D''INSCRIPTION'!T101)","v":"ELITE"},{"$f":"INDEX('LISTE DES TIREURS'!G$8:G$82,'FEUILLE D''INSCRIPTION'!V101)","v":0},"XXL","","","",{"$f":"INDEX('LISTE DES TIREURS'!D$74:D$244,'FEUILLE D''INSCRIPTION'!S101)","v":0},null,null,null,1,117,2,null,68]
[]
[null,null,null,null,null,{"$f":"INDEX('LISTE DES TIREURS'!B$74:B$244,'FEUILLE D''INSCRIPTION'!S103)","v":0},{"$f":"INDEX('LISTE DES TIREURS'!C$74:C$244,'FEUILLE D''INSCRIPTION'!S103)","v":0},{"$f":"INDEX('FEUILLE D''INSCRIPTION'!U$7:U$15,'FEUILLE D''INSCRIPTION'!T103)","v":"ELITE"},{"$f":"INDEX('LISTE DES TIREURS'!G$8:G$82,'FEUILLE D''INSCRIPTION'!V103)","v":0},"XXL",{"$f":"IF(F103>0,$I$3,\"\")","v":""},{"$f":"IF(F103>0,$F$2,\"\")","v":""},{"$f":"IF(F103>0,$G$3,\"\")","v":""},{"$f":"INDEX('LISTE DES TIREURS'!D$74:D$244,'FEUILLE D''INSCRIPTION'!S103)","v":0},null,null,null,{"$f":"COUNTIFS($S$7:$S$181,S103)","v":1},118,2,null,69]
[null,null,null,null,null,{"$f":"INDEX('LISTE DES TIREURS'!B$74:B$244,'FEUILLE D''INSCRIPTION'!S104)","v":0},{"$f":"INDEX('LISTE DES TIREURS'!C$74:C$244,'FEUILLE D''INSCRIPTION'!S104)","v":0},{"$f":"INDEX('FEUILLE D''INSCRIPTION'!U$7:U$15,'FEUILLE D''INSCRIPTION'!T104)","v":"ELITE"},{"$f":"INDEX('LISTE DES TIREURS'!G$8:G$82,'FEUILLE D''INSCRIPTION'!V104)","v":0},"XXL","","","",{"$f":"INDEX('LISTE DES TIREURS'!D$74:D$244,'FEUILLE D''INSCRIPTION'!S104)","v":0},null,null,null,{"$f":"COUNTIFS($S$7:$S$181,S104)","v":1},119,2,null,69]
[null,null,null,null,null,{"$f":"INDEX('LISTE DES TIREURS'!B$74:B$244,'FEUILLE D''INSCRIPTION'!S105)","v":0},{"$f":"INDEX('LISTE DES TIREURS'!C$74:C$244,'FEUILLE D''INSCRIPTION'!S105)","v":0},{"$f":"INDEX('FEUILLE D''INSCRIPTION'!U$7:U$15,'FEUILLE D''INSCRIPTION'!T105)","v":"DAME"},{"$f":"INDEX('LISTE DES TIREURS'!G$8:G$82,'FEUILLE D''INSCRIPTION'!V105)","v":0},null,"","","",{"$f":"INDEX('LISTE DES TIREURS'!D$74:D$244,'FEUILLE D''INSCRIPTION'!S105)","v":0},null,null,null,{"$f":"COUNTIFS($S$7:$S$181,S105)","v":1},128,5,null,69]
[null,null,null,null,null,{"$f":"INDEX('LISTE DES TIREURS'!B$74:B$244,'FEUILLE D''INSCRIPTION'!S106)","v":0},{"$f":"INDEX('LISTE DES TIREURS'!C$74:C$244,'FEUILLE D''INSCRIPTION'!S106)","v":0},{"$f":"INDEX('FEUILLE D''INSCRIPTION'!U$7:U$15,'FEUILLE D''INSCRIPTION'!T106)","v":"ELITE"},{"$f":"INDEX('LISTE DES TIREURS'!G$8:G$82,'FEUILLE D''INSCRIPTION'!V106)","v":0},"M","","","",{"$f":"INDEX('LISTE DES TIREURS'!D$74:D$244,'FEUILLE D''INSCRIPTION'!S106)","v":0},null,null,null,{"$f":"IF(S106<=1,\"\",COUNTIFS($S$7:$S$181,S106))","v":1},121,2,null,69]
[null,null,null,null,null,{"$f":"INDEX('LISTE DES TIREURS'!B$74:B$244,'FEUILLE D''INSCRIPTION'!S107)","v":0},{"$f":"INDEX('LISTE DES TIREURS'!C$74:C$244,'FEUILLE D''INSCRIPTION'!S107)","v":0},{"$f":"INDEX('FEUILLE D''INSCRIPTION'!U$7:U$15,'FEUILLE D''INSCRIPTION'!T107)","v":"ELITE"},{"$f":"INDEX('LISTE DES TIREURS'!G$8:G$82,'FEUILLE D''INSCRIPTION'!V107)","v":0},"S","","","",{"$f":"INDEX('LISTE DES TIREURS'!D$74:D$244,'FEUILLE D''INSCRIPTION'!S107)","v":0},null,null,null,1,122,2,null,69]
[]
[null,null,null,null,null,{"$f":"INDEX('LISTE DES TIREURS'!B$74:B$244,'FEUILLE D''INSCRIPTION'!S109)","v":0},{"$f":"INDEX('LISTE DES TIREURS'!C$74:C$244,'FEUILLE D''INSCRIPTION'!S109)","v":0},{"$f":"INDEX('FEUILLE D''INSCRIPTION'!U$7:U$15,'FEUILLE D''INSCRIPTION'!T109)","v":"ELITE"},{"$f":"INDEX('LISTE DES TIREURS'!G$8:G$82,'FEUILLE D''INSCRIPTION'!V109)","v":"INDIVIDUEL"},"S",{"$f":"IF(F109>0,$I$3,\"\")","v":""},{"$f":"IF(F109>0,$F$2,\"\")","v":""},{"$f":"IF(F109>0,$G$3,\"\")","v":""},{"$f":"INDEX('LISTE DES TIREURS'!D$74:D$244,'FEUILLE D''INSCRIPTION'!S109)","v":0},null,null,null,{"$f":"COUNTIFS($S$7:$S$181,S109)","v":1},124,2,null,2]
[null,null,null,null,null,{"$f":"INDEX('LISTE DES TIREURS'!B$74:B$244,'FEUILLE D''INSCRIPTION'!S110)","v":0},{"$f":"INDEX('LISTE DES TIREURS'!C$74:C$244,'FEUILLE D''INSCRIPTION'!S110)","v":0},{"$f":"INDEX('FEUILLE D''INSCRIPTION'!U$7:U$15,'FEUILLE D''INSCRIPTION'!T110)","v":"ELITE"},{"$f":"INDEX('LISTE DES TIREURS'!G$8:G$82,'FEUILLE D''INSCRIPTION'!V110)","v":"INDIVIDUEL"},"L","","","",{"$f":"INDEX('LISTE DES TIREURS'!D$74:D$244,'FEUILLE D''INSCRIPTION'!S110)","v":0},null,null,null,{"$f":"COUNTIFS($S$7:$S$181,S110)","v":1},125,2,null,2]
[null,null,null,null,null,{"$f":"INDEX('LISTE DES TIREURS'!B$74:B$244,'FEUILLE D''INSCRIPTION'!S111)","v":0},{"$f":"INDEX('LISTE DES TIREURS'!C$74:C$244,'FEUILLE D''INSCRIPTION'!S111)","v":0},{"$f":"INDEX('FEUILLE D''INSCRIPTION'!U$7:U$15,'FEUILLE D''INSCRIPTION'!T111)","v":"ELITE"},{"$f":"INDEX('LISTE DES TIREURS'!G$8:G$82,'FEUILLE D''INSCRIPTION'!V111)","v":"INDIVIDUEL"},"S","","","",{"$f":"INDEX('LISTE DES TIREURS'!D$74:D$244,'FEUILLE D''INSCRIPTION'!S111)","v":0},null,null,null,{"$f":"COUNTIFS($S$7:$S$181,S111)","v":1},126,2,null,2]
[null,null,null,null,null,{"$f":"INDEX('LISTE DES TIREURS'!B$74:B$244,'FEUILLE D''INSCRIPTION'!S112)","v":0},{"$f":"INDEX('LISTE DES TIREURS'!C$74:C$244,'FEUILLE D''INSCRIPTION'!S112)","v":0},{"$f":"INDEX('FEUILLE D''INSCRIPTION'!U$7:U$15,'FEUILLE D''INSCRIPTION'!T112)","v":"ELITE"},{"$f":"INDEX('LISTE DES TIREURS'!G$8:G$82,'FEUILLE D''INSCRIPTION'!V112)","v":"INDIVIDUEL"},"M","","","","F90",null,null,null,{"$f":"IF(S112<=1,\"\",COUNTIFS($S$7:$S$181,S112))","v":1},133,2,null,2]
[null,null,null,null,null,{"$f":"INDEX('LISTE DES TIREURS'!B$74:B$244,'FEUILLE D''INSCRIPTION'!S113)","v":"FONGANG TEMGOUA ALAIN"},{"$f":"INDEX('LISTE DES TIREURS'!C$74:C$244,'FEUILLE D''INSCRIPTION'!S113)","v":1974},{"$f":"INDEX('FEUILLE D''INSCRIPTION'!U$7:U$15,'FEUILLE D''INSCRIPTION'!T113)","v":"ELITE"},{"$f":"INDEX('LISTE DES TIREURS'!G$8:G$82,'FEUILLE D''INSCRIPTION'!V113)","v":"INDIVIDUEL"},"M",14,"LIEBHERR MACHINES BULLE SA","A",{"$f":"INDEX('LISTE DES TIREURS'!D$74:D$244,'FEUILLE D''INSCRIPTION'!S113)","v":"F90"},null,null,null,1,39,2,null,2]
[]
[null,null,null,null,null,{"$f":"INDEX('LISTE DES TIREURS'!B$74:B$244,'FEUILLE D''INSCRIPTION'!S115)","v":0},{"$f":"INDEX('LISTE DES TIREURS'!C$74:C$244,'FEUILLE D''INSCRIPTION'!S115)","v":0},{"$f":"INDEX('FEUILLE D''INSCRIPTION'!U$7:U$15,'FEUILLE D''INSCRIPTION'!T115)","v":0},{"$f":"INDEX('LISTE DES TIREURS'!G$8:G$82,'FEUILLE D''INSCRIPTION'!V115)","v":0},null,{"$f":"IF(F115>0,$I$3,\"\")","v":""},{"$f":"IF(F115>0,$F$2,\"\")","v":""},{"$f":"IF(F115>0,$G$3,\"\")","v":""},null,null,null,null,{"$f":"COUNTIFS($S$7:$S$181,S115)","v":1},167,1,null,1]
[null,null,null,null,null,{"$f":"INDEX('LISTE DES TIREURS'!B$74:B$244,'FEUILLE D''INSCRIPTION'!S116)","v":0},{"$f":"INDEX('LISTE DES TIREURS'!C$74:C$244,'FEUILLE D''INSCRIPTION'!S116)","v":0},{"$f":"INDEX('FEUILLE D''INSCRIPTION'!U$7:U$15,'FEUILLE D''INSCRIPTION'!T116)","v":0},{"$f":"INDEX('LISTE DES TIREURS'!G$8:G$82,'FEUILLE D''INSCRIPTION'!V116)","v":0},{"$f":"INDEX('LISTE DES TIREURS'!F$8:F$82,'FEUILLE D''INSCRIPTION'!V116)","v":0},"","","",null,null,null,null,{"$f":"COUNTIFS($S$7:$S$181,S116)","v":1},163,1,null,1]
[null,null,null,null,null,{"$f":"INDEX('LISTE DES TIREURS'!B$74:B$244,'FEUILLE D''INSCRIPTION'!S117)","v":0},{"$f":"INDEX('LISTE DES TIREURS'!C$74:C$244,'FEUILLE D''INSCRIPTION'!S117)","v":0},{"$f":"INDEX('FEUILLE D''INSCRIPTION'!U$7:U$15,'FEUILLE D''INSCRIPTION'!T117)","v":0},{"$f":"INDEX('LISTE DES TIREURS'!G$8:G$82,'FEUILLE D''INSCRIPTION'!V117)","v":0},{"$f":"INDEX('LISTE DES TIREURS'!F$8:F$82,'FEUILLE D''INSCRIPTION'!V117)","v":0},"","","",null,null,null,null,{"$f":"COUNTIFS($S$7:$S$181,S117)","v":1},166,1,null,1]
[null,null,null,null,null,{"$f":"INDEX('LISTE DES TIREURS'!B$74:B$244,'FEUILLE D''INSCRIPTION'!S118)","v":0},{"$f":"INDEX('LISTE DES TIREURS'!C$74:C$244,'FEUILLE D''INSCRIPTION'!S118)","v":0},{"$f":"INDEX('FEUILLE D''INSCRIPTION'!U$7:U$15,'FEUILLE D''INSCRIPTION'!T118)","v":0},{"$f":"INDEX('LISTE DES TIREURS'!G$8:G$82,'FEUILLE D''INSCRIPTION'!V118)","v":0},{"$f":"INDEX('LISTE DES TIREURS'!F$8:F$82,'FEUILLE D''INSCRIPTION'!V118)","v":0},"","","",null,null,null,null,{"$f":"IF(S118<=1,\"\",COUNTIFS($S$7:$S$181,S118))","v":1},169,1,null,1]
[null,null,null,null,null,{"$f":"INDEX('LISTE DES TIREURS'!B$74:B$244,'FEUILLE D''INSCRIPTION'!S119)","v":0},{"$f":"INDEX('LISTE DES TIREURS'!C$74:C$244,'FEUILLE D''INSCRIPTION'!S119)","v":0},{"$f":"INDEX('FEUILLE D''INSCRIPTION'!U$7:U$15,'FEUILLE D''INSCRIPTION'!T119)","v":0},{"$f":"INDEX('LISTE DES TIREURS'!G$8:G$82,'FEUILLE D''INSCRIPTION'!V119)","v":0},{"$f":"INDEX('LISTE DES TIREURS'!F$8:F$82,'FEUILLE D''INSCRIPTION'!V119)","v":0},"","","",{"$f":"INDEX('LISTE DES TIREURS'!D$74:D$244,'FEUILLE D''INSCRIPTION'!S119)","v":0},null,null,null,"",1,1,null,1]
[]
[null,null,null,null,null,{"$f":"INDEX('LISTE DES TIREURS'!B$74:B$244,'FEUILLE D''INSCRIPTION'!S121)","v":0},{"$f":"INDEX('LISTE DES TIREURS'!C$74:C$244,'FEUILLE D''INSCRIPTION'!S121)","v":0},{"$f":"INDEX('FEUILLE D''INSCRIPTION'!U$7:U$15,'FEUILLE D''INSCRIPTION'!T121)","v":0},{"$f":"INDEX('LISTE DES TIREURS'!G$8:G$82,'FEUILLE D''INSCRIPTION'!V121)","v":0},{"$f":"INDEX('LISTE DES TIREURS'!F$8:F$82,'FEUILLE D''INSCRIPTION'!V121)","v":0},{"$f":"IF(F121>0,$I$3,\"\")","v":""},{"$f":"IF(F121>0,$F$2,\"\")","v":""},{"$f":"IF(F121>0,$G$3,\"\")","v":""},{"$f":"INDEX('LISTE DES TIREURS'!D$74:D$244,'FEUILLE D''INSCRIPTION'!S121)","v":0},null,null,null,{"$f":"COUNTIFS($S$7:$S$181,S121)","v":36},1,1,null,1]
[null,null,null,null,null,{"$f":"INDEX('LISTE DES TIREURS'!B$74:B$244,'FEUILLE D''INSCRIPTION'!S122)","v":0},{"$f":"INDEX('LISTE DES TIREURS'!C$74:C$244,'FEUILLE D''INSCRIPTION'!S122)","v":0},{"$f":"INDEX('FEUILLE D''INSCRIPTION'!U$7:U$15,'FEUILLE D''INSCRIPTION'!T122)","v":0},{"$f":"INDEX('LISTE DES TIREURS'!G$8:G$82,'FEUILLE D''INSCRIPTION'!V122)","v":0},{"$f":"INDEX('LISTE DES TIREURS'!F$8:F$82,'FEUILLE D''INSCRIPTION'!V122)","v":0},"","","",{"$f":"INDEX('LISTE DES TIREURS'!D$74:D$244,'FEUILLE D''INSCRIPTION'!S122)","v":0},null,null,null,{"$f":"COUNTIFS($S$7:$S$181,S122)","v":36},1,1,null,1]
[null,null,null,null,null,{"$f":"INDEX('LISTE DES TIREURS'!B$74:B$244,'FEUILLE D''INSCRIPTION'!S123)","v":0},{"$f":"INDEX('LISTE DES TIREURS'!C$74:C$244,'FEUILLE D''INSCRIPTION'!S123)","v":0},{"$f":"INDEX('FEUILLE D''INSCRIPTION'!U$7:U$15,'FEUILLE D''INSCRIPTION'!T123)","v":0},{"$f":"INDEX('LISTE DES TIREURS'!G$8:G$82,'FEUILLE D''INSCRIPTION'!V123)","v":0},{"$f":"INDEX('LISTE DES TIREURS'!F$8:F$82,'FEUILLE D''INSCRIPTION'!V123)","v":0},"","","",{"$f":"INDEX('LISTE DES TIREURS'!D$74:D$244,'FEUILLE D''INSCRIPTION'!S123)","v":0},null,null,null,{"$f":"COUNTIFS($S$7:$S$181,S123)","v":36},1,1,null,1]
[null,null,null,null,null,{"$f":"INDEX('LISTE DES TIREURS'!B$74:B$244,'FEUILLE D''INSCRIPTION'!S124)","v":0},{"$f":"INDEX('LISTE DES TIREURS'!C$74:C$244,'FEUILLE D''INSCRIPTION'!S124)","v":0},{"$f":"INDEX('FEUILLE D''INSCRIPTION'!U$7:U$15,'FEUILLE D''INSCRIPTION'!T124)","v":0},{"$f":"INDEX('LISTE DES TIREURS'!G$8:G$82,'FEUILLE D''INSCRIPTION'!V124)","v":0},{"$f":"INDEX('LISTE DES TIREURS'!F$8:F$82,'FEUILLE D''INSCRIPTION'!V124)","v":0},"","","",{"$f":"INDEX('LISTE DES TIREURS'!D$74:D$244,'FEUILLE D''INSCRIPTION'!S124)","v":0},null,null,null,{"$f":"IF(S124<=1,\"\",COUNTIFS($S$7:$S$181,S124))","v":""},1,1,null,1]
[null,null,null,null,null,{"$f":"INDEX('LISTE DES TIREURS'!B$74:B$244,'FEUILLE D''INSCRIPTION'!S125)","v":0},{"$f":"INDEX('LISTE DES TIREURS'!C$74:C$244,'FEUILLE D''INSCRIPTION'!S125)","v":0},{"$f":"INDEX('FEUILLE D''INSCRIPTION'!U$7:U$15,'FEUILLE D''INSCRIPTION'!T125)","v":0},{"$f":"INDEX('LISTE DES TIREURS'!G$8:G$82,'FEUILLE D''INSCRIPTION'!V125)","v":0},{"$f":"INDEX('LISTE DES TIREURS'!F$8:F$82,'FEUILLE D''INSCRIPTION'!V125)","v":0},"","","",{"$f":"INDEX('LISTE DES TIREURS'!D$74:D$244,'FEUILLE D''INSCRIPTION'!S125)","v":0},null,null,null,"",1,1,null,1]
[null,null,null,null,null,null,null,null,null,null,null,null,null,null,null,null,null,null,null,null,null,2]
[null,null,null,null,null,{"$f":"INDEX('LISTE DES TIREURS'!B$74:B$244,'FEUILLE D''INSCRIPTION'!S127)","v":0},{"$f":"INDEX('LISTE DES TIREURS'!C$74:C$244,'FEUILLE D''INSCRIPTION'!S127)","v":0},{"$f":"INDEX('FEUILLE D''INSCRIPTION'!U$7:U$15,'FEUILLE D''INSCRIPTION'!T127)","v":0},{"$f":"INDEX('LISTE DES TIREURS'!G$8:G$82,'FEUILLE D''INSCRIPTION'!V127)","v":0},{"$f":"INDEX('LISTE DES TIREURS'!F$8:F$82,'FEUILLE D''INSCRIPTION'!V127)","v":0},{"$f":"IF(F127>0,$I$3,\"\")","v":""},{"$f":"IF(F127>0,$F$2,\"\")","v":""},{"$f":"IF(F127>0,$G$3,\"\")","v":""},{"$f":"INDEX('LISTE DES TIREURS'!D$74:D$244,'FEUILLE D''INSCRIPTION'!S127)","v":0},null,null,null,{"$f":"COUNTIFS($S$7:$S$181,S127)","v":36},1,1,null,1]
[null,null,null,null,null,{"$f":"INDEX('LISTE DES TIREURS'!B$74:B$244,'FEUILLE D''INSCRIPTION'!S128)","v":0},{"$f":"INDEX('LISTE DES TIREURS'!C$74:C$244,'FEUILLE D''INSCRIPTION'!S128)","v":0},{"$f":"INDEX('FEUILLE D''INSCRIPTION'!U$7:U$15,'FEUILLE D''INSCRIPTION'!T128)","v":0},{"$f":"INDEX('LISTE DES TIREURS'!G$8:G$82,'FEUILLE D''INSCRIPTION'!V128)","v":0},{"$f":"INDEX('LISTE DES TIREURS'!F$8:F$82,'FEUILLE D''INSCRIPTION'!V128)","v":0},"","","",{"$f":"INDEX('LISTE DES TIREURS'!D$74:D$244,'FEUILLE D''INSCRIPTION'!S128)","v":0},null,null,null,{"$f":"COUNTIFS($S$7:$S$181,S128)","v":36},1,1,null,1]
[null,null,null,null,null,{"$f":"INDEX('LISTE DES TIREURS'!B$74:B$244,'FEUILLE D''INSCRIPTION'!S129)","v":0},{"$f":"INDEX('LISTE DES TIREURS'!C$74:C$244,'FEUILLE D''INSCRIPTION'!S129)","v":0},{"$f":"INDEX('FEUILLE D''INSCRIPTION'!U$7:U$15,'FEUILLE D''INSCRIPTION'!T129)","v":0},{"$f":"INDEX('LISTE DES TIREURS'!G$8:G$82,'FEUILLE D''INSCRIPTION'!V129)","v":0},{"$f":"INDEX('LISTE DES TIREURS'!F$8:F$82,'FEUILLE D''INSCRIPTION'!V129)","v":0},"","","",{"$f":"INDEX('LISTE DES TIREURS'!D$74:D$244,'FEUILLE D''INSCRIPTION'!S129)","v":0},null,null,null,{"$f":"COUNTIFS($S$7:$S$181,S129)","v":36},1,1,null,1]
[null,null,null,null,null,{"$f":"INDEX('LISTE DES TIREURS'!B$74:B$244,'FEUILLE D''INSCRIPTION'!S130)","v":0},{"$f":"INDEX('LISTE DES TIREURS'!C$74:C$244,'FEUILLE D''INSCRIPTION'!S130)","v":0},{"$f":"INDEX('FEUILLE D''INSCRIPTION'!U$7:U$15,'FEUILLE D''INSCRIPTION'!T130)","v":0},{"$f":"INDEX('LISTE DES TIREURS'!G$8:G$82,'FEUILLE D''INSCRIPTION'!V130)","v":0},{"$f":"INDEX('LISTE DES TIREURS'!F$8:F$82,'FEUILLE D''INSCRIPTION'!V130)","v":0},"","","",{"$f":"INDEX('LISTE DES TIREURS'!D$74:D$244,'FEUILLE D''INSCRIPTION'!S130)","v":0},null,null,null,{"$f":"IF(S130<=1,\"\",COUNTIFS($S$7:$S$181,S130))","v":""},1,1,null,1]
[null,null,null,null,null,{"$f":"INDEX('LISTE DES TIREURS'!B$74:B$244,'FEUILLE D''INSCRIPTION'!S131)","v":0},{"$f":"INDEX('LISTE DES TIREURS'!C$74:C$244,'FEUILLE D''INSCRIPTION'!S131)","v":0},{"$f":"INDEX('FEUILLE D''INSCRIPTION'!U$7:U$15,'FEUILLE D''INSCRIPTION'!T131)","v":0},{"$f":"INDEX('LISTE DES TIREURS'!G$8:G$82,'FEUILLE D''INSCRIPTION'!V131)","v":0},{"$f":"INDEX('LISTE DES TIREURS'!F$8:F$82,'FEUILLE D''INSCRIPTION'!V131)","v":0},"","","",{"$f":"INDEX('LISTE DES TIREURS'!D$74:D$244,'FEUILLE D''INSCRIPTION'!S131)","v":0},null,null,null,"",1,1,null,1]
[]
[null,null,null,null,null,{"$f":"INDEX('LISTE DES TIREURS'!B$74:B$244,'FEUILLE D''INSCRIPTION'!S133)","v":0},{"$f":"INDEX('LISTE DES TIREURS'!C$74:C$244,'FEUILLE D''INSCRIPTION'!S133)","v":0},{"$f":"INDEX('FEUILLE D''INSCRIPTION'!U$7:U$15,'FEUILLE D''INSCRIPTION'!T133)","v":0},{"$f":"INDEX('LISTE DES TIREURS'!G$8:G$82,'FEUILLE D''INSCRIPTION'!V133)","v":0},{"$f":"INDEX('LISTE DES TIREURS'!F$8:F$82,'FEUILLE D''INSCRIPTION'!V133)","v":0},{"$f":"IF(F133>0,$I$3,\"\")","v":""},{"$f":"IF(F133>0,$F$2,\"\")","v":""},{"$f":"IF(F133>0,$G$3,\"\")","v":""},{"$f":"INDEX('LISTE DES TIREURS'!D$74:D$244,'FEUILLE D''INSCRIPTION'!S133)","v":0},null,null,null,{"$f":"COUNTIFS($S$7:$S$181,S133)","v":36},1,1,null,1]
[null,null,null,null,null,{"$f":"INDEX('LISTE DES TIREURS'!B$74:B$244,'FEUILLE D''INSCRIPTION'!S134)","v":0},{"$f":"INDEX('LISTE DES TIREURS'!C$74:C$244,'FEUILLE D''INSCRIPTION'!S134)","v":0},{"$f":"INDEX('FEUILLE D''INSCRIPTION'!U$7:U$15,'FEUILLE D''INSCRIPTION'!T134)","v":0},{"$f":"INDEX('LISTE DES TIREURS'!G$8:G$82,'FEUILLE D''INSCRIPTION'!V134)","v":0},{"$f":"INDEX('LISTE DES TIREURS'!F$8:F$82,'FEUILLE D''INSCRIPTION'!V134)","v":0},"","","",{"$f":"INDEX('LISTE DES TIREURS'!D$74:D$244,'FEUILLE D''INSCRIPTION'!S134)","v":0},null,null,null,{"$f":"COUNTIFS($S$7:$S$181,S134)","v":36},1,1,null,1]
[null,null,null,null,null,{"$f":"INDEX('LISTE DES TIREURS'!B$74:B$244,'FEUILLE D''INSCRIPTION'!S135)","v":0},{"$f":"INDEX('LISTE DES TIREURS'!C$74:C$244,'FEUILLE D''INSCRIPTION'!S135)","v":0},{"$f":"INDEX('FEUILLE D''INSCRIPTION'!U$7:U$15,'FEUILLE D''INSCRIPTION'!T135)","v":0},{"$f":"INDEX('LISTE DES TIREURS'!G$8:G$82,'FEUILLE D''INSCRIPTION'!V135)","v":0},{"$f":"INDEX('LISTE DES TIREURS'!F$8:F$82,'FEUILLE D''INSCRIPTION'!V135)","v":0},"","","",{"$f":"INDEX('LISTE DES TIREURS'!D$74:D$244,'FEUILLE D''INSCRIPTION'!S135)","v":0},null,null,null,{"$f":"COUNTIFS($S$7:$S$181,S135)","v":36},1,1,null,1]
[null,null,null,null,null,{"$f":"INDEX('LISTE DES TIREURS'!B$74:B$244,'FEUILLE D''INSCRIPTION'!S136)","v":0},{"$f":"INDEX('LISTE DES TIREURS'!C$74:C$244,'FEUILLE D''INSCRIPTION'!S136)","v":0},{"$f":"INDEX('FEUILLE D''INSCRIPTION'!U$7:U$15,'FEUILLE D''INSCRIPTION'!T136)","v":0},{"$f":"INDEX('LISTE DES TIREURS'!G$8:G$82,'FEUILLE D''INSCRIPTION'!V136)","v":0},{"$f":"INDEX('LISTE DES TIREURS'!F$8:F$82,'FEUILLE D''INSCRIPTION'!V136)","v":0},"","","",{"$f":"INDEX('LISTE DES TIREURS'!D$74:D$244,'FEUILLE D''INSCRIPTION'!S136)","v":0},null,null,null,{"$f":"IF(S136<=1,\"\",COUNTIFS($S$7:$S$181,S136))","v":""},1,1,null,1]
[null,null,null,null,null,{"$f":"INDEX('LISTE DES TIREURS'!B$74:B$244,'FEUILLE D''INSCRIPTION'!S137)","v":0},{"$f":"INDEX('LISTE DES TIREURS'!C$74:C$244,'FEUILLE D''INSCRIPTION'!S137)","v":0},{"$f":"INDEX('FEUILLE D''INSCRIPTION'!U$7:U$15,'FEUILLE D''INSCRIPTION'!T137)","v":0},{"$f":"INDEX('LISTE DES TIREURS'!G$8:G$82,'FEUILLE D''INSCRIPTION'!V137)","v":0},{"$f":"INDEX('LISTE DES TIREURS'!F$8:F$82,'FEUILLE D''INSCRIPTION'!V137)","v":0},"","","",{"$f":"INDEX('LISTE DES TIREURS'!D$74:D$244,'FEUILLE D''INSCRIPTION'!S137)","v":0},null,null,null,"",1,1,null,1]
[]
[null,null,null,null,null,{"$f":"INDEX('LISTE DES TIREURS'!B$74:B$244,'FEUILLE D''INSCRIPTION'!S139)","v":0},{"$f":"INDEX('LISTE DES TIREURS'!C$74:C$244,'FEUILLE D''INSCRIPTION'!S139)","v":0},{"$f":"INDEX('FEUILLE D''INSCRIPTION'!U$7:U$15,'FEUILLE D''INSCRIPTION'!T139)","v":0},{"$f":"INDEX('LISTE DES TIREURS'!G$8:G$82,'FEUILLE D''INSCRIPTION'!V139)","v":0},{"$f":"INDEX('LISTE DES TIREURS'!F$8:F$82,'FEUILLE D''INSCRIPTION'!V139)","v":0},{"$f":"IF(F139>0,$I$3,\"\")","v":""},{"$f":"IF(F139>0,$F$2,\"\")","v":""},{"$f":"IF(F139>0,$G$3,\"\")","v":""},{"$f":"INDEX('LISTE DES TIREURS'!D$74:D$244,'FEUILLE D''INSCRIPTION'!S139)","v":0},null,null,null,{"$f":"COUNTIFS($S$7:$S$181,S139)","v":36},1,1,null,1]
[null,null,null,null,null,{"$f":"INDEX('LISTE DES TIREURS'!B$74:B$244,'FEUILLE D''INSCRIPTION'!S140)","v":0},{"$f":"INDEX('LISTE DES TIREURS'!C$74:C$244,'FEUILLE D''INSCRIPTION'!S140)","v":0},{"$f":"INDEX('FEUILLE D''INSCRIPTION'!U$7:U$15,'FEUILLE D''INSCRIPTION'!T140)","v":0},{"$f":"INDEX('LISTE DES TIREURS'!G$8:G$82,'FEUILLE D''INSCRIPTION'!V140)","v":0},{"$f":"INDEX('LISTE DES TIREURS'!F$8:F$82,'FEUILLE D''INSCRIPTION'!V140)","v":0},"","","",{"$f":"INDEX('LISTE DES TIREURS'!D$74:D$244,'FEUILLE D''INSCRIPTION'!S140)","v":0},null,null,null,{"$f":"COUNTIFS($S$7:$S$181,S140)","v":36},1,1,null,1]
[null,null,null,null,null,{"$f":"INDEX('LISTE DES TIREURS'!B$74:B$244,'FEUILLE D''INSCRIPTION'!S141)","v":0},{"$f":"INDEX('LISTE DES TIREURS'!C$74:C$244,'FEUILLE D''INSCRIPTION'!S141)","v":0},{"$f":"INDEX('FEUILLE D''INSCRIPTION'!U$7:U$15,'FEUILLE D''INSCRIPTION'!T141)","v":0},{"$f":"INDEX('LISTE DES TIREURS'!G$8:G$82,'FEUILLE D''INSCRIPTION'!V141)","v":0},{"$f":"INDEX('LISTE DES TIREURS'!F$8:F$82,'FEUILLE D''INSCRIPTION'!V141)","v":0},"","","",{"$f":"INDEX('LISTE DES TIREURS'!D$74:D$244,'FEUILLE D''INSCRIPTION'!S141)","v":0},null,null,null,{"$f":"COUNTIFS($S$7:$S$181,S141)","v":36},1,1,null,1]
[null,null,null,null,null,{"$f":"INDEX('LISTE DES TIREURS'!B$74:B$244,'FEUILLE D''INSCRIPTION'!S142)","v":0},{"$f":"INDEX('LISTE DES TIREURS'!C$74:C$244,'FEUILLE D''INSCRIPTION'!S142)","v":0},{"$f":"INDEX('FEUILLE D''INSCRIPTION'!U$7:U$15,'FEUILLE D''INSCRIPTION'!T142)","v":0},{"$f":"INDEX('LISTE DES TIREURS'!G$8:G$82,'FEUILLE D''INSCRIPTION'!V142)","v":0},{"$f":"INDEX('LISTE DES TIREURS'!F$8:F$82,'FEUILLE D''INSCRIPTION'!V142)","v":0},"","","",{"$f":"INDEX('LISTE DES TIREURS'!D$74:D$244,'FEUILLE D''INSCRIPTION'!S142)","v":0},null,null,null,{"$f":"IF(S142<=1,\"\",COUNTIFS($S$7:$S$181,S142))","v":""},1,1,null,1]
[null,null,null,null,null,{"$f":"INDEX('LISTE DES TIREURS'!B$74:B$244,'FEUILLE D''INSCRIPTION'!S143)","v":0},{"$f":"INDEX('LISTE DES TIREURS'!C$74:C$244,'FEUILLE D''INSCRIPTION'!S143)","v":0},{"$f":"INDEX('FEUILLE D''INSCRIPTION'!U$7:U$15,'FEUILLE D''INSCRIPTION'!T143)","v":0},{"$f":"INDEX('LISTE DES TIREURS'!G$8:G$82,'FEUILLE D''INSCRIPTION'!V143)","v":0},{"$f":"INDEX('LISTE DES TIREURS'!F$8:F$82,'FEUILLE D''INSCRIPTION'!V143)","v":0},"","","",{"$f":"INDEX('LISTE DES TIREURS'!D$74:D$244,'FEUILLE D''INSCRIPTION'!S143)","v":0},null,null,null,"",1,1,null,1]
[]
[null,null,null,null,null,{"$f":"INDEX('LISTE DES TIREURS'!B$74:B$244,'FEUILLE D''INSCRIPTION'!S145)","v":0},{"$f":"INDEX('LISTE DES TIREURS'!C$74:C$244,'FEUILLE D''INSCRIPTION'!S145)","v":0},{"$f":"INDEX('FEUILLE D''INSCRIPTION'!U$7:U$15,'FEUILLE D''INSCRIPTION'!T145)","v":0},{"$f":"INDEX('LISTE DES TIREURS'!G$8:G$82,'FEUILLE D''INSCRIPTION'!V145)","v":0},{"$f":"INDEX('LISTE DES TIREURS'!F$8:F$82,'FEUILLE D''INSCRIPTION'!V145)","v":0},{"$f":"IF(F145>0,$I$3,\"\")","v":""},{"$f":"IF(F145>0,$F$2,\"\")","v":""},{"$f":"IF(F145>0,$G$3,\"\")","v":""},{"$f":"INDEX('LISTE DES TIREURS'!D$74:D$244,'FEUILLE D''INSCRIPTION'!S145)","v":0},null,null,null,{"$f":"COUNTIFS($S$7:$S$181,S145)","v":36},1,1,null,1]
[null,null,null,null,null,{"$f":"INDEX('LISTE DES TIREURS'!B$74:B$244,'FEUILLE D''INSCRIPTION'!S146)","v":0},{"$f":"INDEX('LISTE DES TIREURS'!C$74:C$244,'FEUILLE D''INSCRIPTION'!S146)","v":0},{"$f":"INDEX('FEUILLE D''INSCRIPTION'!U$7:U$15,'FEUILLE D''INSCRIPTION'!T146)","v":0},{"$f":"INDEX('LISTE DES TIREURS'!G$8:G$82,'FEUILLE D''INSCRIPTION'!V146)","v":0},{"$f":"INDEX('LISTE DES TIREURS'!F$8:F$82,'FEUILLE D''INSCRIPTION'!V146)","v":0},"","","",{"$f":"INDEX('LISTE DES TIREURS'!D$74:D$244,'FEUILLE D''INSCRIPTION'!S146)","v":0},null,null,null,{"$f":"COUNTIFS($S$7:$S$181,S146)","v":36},1,1,null,1]
[null,null,null,null,null,{"$f":"INDEX('LISTE DES TIREURS'!B$74:B$244,'FEUILLE D''INSCRIPTION'!S147)","v":0},{"$f":"INDEX('LISTE DES TIREURS'!C$74:C$244,'FEUILLE D''INSCRIPTION'!S147)","v":0},{"$f":"INDEX('FEUILLE D''INSCRIPTION'!U$7:U$15,'FEUILLE D''INSCRIPTION'!T147)","v":0},{"$f":"INDEX('LISTE DES TIREURS'!G$8:G$82,'FEUILLE D''INSCRIPTION'!V147)","v":0},{"$f":"INDEX('LISTE DES TIREURS'!F$8:F$82,'FEUILLE D''INSCRIPTION'!V147)","v":0},"","","",{"$f":"INDEX('LISTE DES TIREURS'!D$74:D$244,'FEUILLE D''INSCRIPTION'!S147)","v":0},null,null,null,{"$f":"COUNTIFS($S$7:$S$181,S147)","v":36},1,1,null,1]
[null,null,null,null,null,{"$f":"INDEX('LISTE DES TIREURS'!B$74:B$244,'FEUILLE D''INSCRIPTION'!S148)","v":0},{"$f":"INDEX('LISTE DES TIREURS'!C$74:C$244,'FEUILLE D''INSCRIPTION'!S148)","v":0},{"$f":"INDEX('FEUILLE D''INSCRIPTION'!U$7:U$15,'FEUILLE D''INSCRIPTION'!T148)","v":0},{"$f":"INDEX('LISTE DES TIREURS'!G$8:G$82,'FEUILLE D''INSCRIPTION'!V148)","v":0},{"$f":"INDEX('LISTE DES TIREURS'!F$8:F$82,'FEUILLE D''INSCRIPTION'!V148)","v":0},"","","",{"$f":"INDEX('LISTE DES TIREURS'!D$74:D$244,'FEUILLE D''INSCRIPTION'!S148)","v":0},null,null,null,{"$f":"IF(S148<=1,\"\",COUNTIFS($S$7:$S$181,S148))","v":""},1,1,null,1]
[null,null,null,null,null,{"$f":"INDEX('LISTE DES TIREURS'!B$74:B$244,'FEUILLE D''INSCRIPTION'!S149)","v":0},{"$f":"INDEX('LISTE DES TIREURS'!C$74:C$244,'FEUILLE D''INSCRIPTION'!S149)","v":0},{"$f":"INDEX('FEUILLE D''INSCRIPTION'!U$7:U$15,'FEUILLE D''INSCRIPTION'!T149)","v":0},{"$f":"INDEX('LISTE DES TIREURS'!G$8:G$82,'FEUILLE D''INSCRIPTION'!V149)","v":0},{"$f":"INDEX('LISTE DES TIREURS'!F$8:F$82,'FEUILLE D''INSCRIPTION'!V149)","v":0},"","","",{"$f":"INDEX('LISTE DES TIREURS'!D$74:D$244,'FEUILLE D''INSCRIPTION'!S149)","v":0},null,null,null,"",1,1,null,1]
[]
[null,null,null,null,null,{"$f":"INDEX('LISTE DES TIREURS'!B$74:B$244,'FEUILLE D''INSCRIPTION'!S151)","v":0},{"$f":"INDEX('LISTE DES TIREURS'!C$74:C$244,'FEUILLE D''INSCRIPTION'!S151)","v":0},{"$f":"INDEX('FEUILLE D''INSCRIPTION'!U$7:U$15,'FEUILLE D''INSCRIPTION'!T151)","v":0},{"$f":"INDEX('LISTE DES TIREURS'!G$8:G$82,'FEUILLE D''INSCRIPTION'!V151)","v":0},{"$f":"INDEX('LISTE DES TIREURS'!F$8:F$82,'FEUILLE D''INSCRIPTION'!V151)","v":0},{"$f":"IF(F151>0,$I$3,\"\")","v":""},{"$f":"IF(F151>0,$F$2,\"\")","v":""},{"$f":"IF(F151>0,$G$3,\"\")","v":""},{"$f":"INDEX('LISTE DES TIREURS'!D$74:D$244,'FEUILLE D''INSCRIPTION'!S151)","v":0},null,null,null,{"$f":"COUNTIFS($S$7:$S$181,S151)","v":36},1,1,null,1]
[null,null,null,null,null,{"$f":"INDEX('LISTE DES TIREURS'!B$74:B$244,'FEUILLE D''INSCRIPTION'!S152)","v":0},{"$f":"INDEX('LISTE DES TIREURS'!C$74:C$244,'FEUILLE D''INSCRIPTION'!S152)","v":0},{"$f":"INDEX('FEUILLE D''INSCRIPTION'!U$7:U$15,'FEUILLE D''INSCRIPTION'!T152)","v":0},{"$f":"INDEX('LISTE DES TIREURS'!G$8:G$82,'FEUILLE D''INSCRIPTION'!V152)","v":0},{"$f":"INDEX('LISTE DES TIREURS'!F$8:F$82,'FEUILLE D''INSCRIPTION'!V152)","v":0},"","","",{"$f":"INDEX('LISTE DES TIREURS'!D$74:D$244,'FEUILLE D''INSCRIPTION'!S152)","v":0},null,null,null,{"$f":"COUNTIFS($S$7:$S$181,S152)","v":36},1,1,null,1]
[null,null,null,null,null,{"$f":"INDEX('LISTE DES TIREURS'!B$74:B$244,'FEUILLE D''INSCRIPTION'!S153)","v":0},{"$f":"INDEX('LISTE DES TIREURS'!C$74:C$244,'FEUILLE D''INSCRIPTION'!S153)","v":0},{"$f":"INDEX('FEUILLE D''INSCRIPTION'!U$7:U$15,'FEUILLE D''INSCRIPTION'!T153)","v":0},{"$f":"INDEX('LISTE DES TIREURS'!G$8:G$82,'FEUILLE D''INSCRIPTION'!V153)","v":0},{"$f":"INDEX('LISTE DES TIREURS'!F$8:F$82,'FEUILLE D''INSCRIPTION'!V153)","v":0},"","","",{"$f":"INDEX('LISTE DES TIREURS'!D$74:D$244,'FEUILLE D''INSCRIPTION'!S153)","v":0},null,null,null,{"$f":"COUNTIFS($S$7:$S$181,S153)","v":36},1,1,null,1]
[null,null,null,null,null,{"$f":"INDEX('LISTE DES TIREURS'!B$74:B$244,'FEUILLE D''INSCRIPTION'!S154)","v":0},{"$f":"INDEX('LISTE DES TIREURS'!C$74:C$244,'FEUILLE D''INSCRIPTION'!S154)","v":0},{"$f":"INDEX('FEUILLE D''INSCRIPTION'!U$7:U$15,'FEUILLE D''INSCRIPTION'!T154)","v":0},{"$f":"INDEX('LISTE DES TIREURS'!G$8:G$82,'FEUILLE D''INSCRIPTION'!V154)","v":0},{"$f":"INDEX('LISTE DES TIREURS'!F$8:F$82,'FEUILLE D''INSCRIPTION'!V154)","v":0},"","","",{"$f":"INDEX('LISTE DES TIREURS'!D$74:D$244,'FEUILLE D''INSCRIPTION'!S154)","v":0},null,null,null,{"$f":"IF(S154<=1,\"\",COUNTIFS($S$7:$S$181,S154))","v":""},1,1,null,1]
[null,null,null,null,null,{"$f":"INDEX('LISTE DES TIREURS'!B$74:B$244,'FEUILLE D''INSCRIPTION'!S155)","v":0},{"$f":"INDEX('LISTE DES TIREURS'!C$74:C$244,'FEUILLE D''INSCRIPTION'!S155)","v":0},{"$f":"INDEX('FEUILLE D''INSCRIPTION'!U$7:U$15,'FEUILLE D''INSCRIPTION'!T155)","v":0},{"$f":"INDEX('LISTE DES TIREURS'!G$8:G$82,'FEUILLE D''INSCRIPTION'!V155)","v":0},{"$f":"INDEX('LISTE DES TIREURS'!F$8:F$82,'FEUILLE D''INSCRIPTION'!V155)","v":0},"","","",{"$f":"INDEX('LISTE DES TIREURS'!D$74:D$244,'FEUILLE D''INSCRIPTION'!S155)","v":0},null,null,null,"",1,1,null,1]
[]
[null,null,null,null,null,{"$f":"INDEX('LISTE DES TIREURS'!B$74:B$244,'FEUILLE D''INSCRIPTION'!S157)","v":0},{"$f":"INDEX('LISTE DES TIREURS'!C$74:C$244,'FEUILLE D''INSCRIPTION'!S157)","v":0},{"$f":"INDEX('FEUILLE D''INSCRIPTION'!U$7:U$15,'FEUILLE D''INSCRIPTION'!T157)","v":0},{"$f":"INDEX('LISTE DES TIREURS'!G$8:G$82,'FEUILLE D''INSCRIPTION'!V157)","v":0},{"$f":"INDEX('LISTE DES TIREURS'!F$8:F$82,'FEUILLE D''INSCRIPTION'!V157)","v":0},{"$f":"IF(F157>0,$I$3,\"\")","v":""},{"$f":"IF(F157>0,$F$2,\"\")","v":""},{"$f":"IF(F157>0,$G$3,\"\")","v":""},{"$f":"INDEX('LISTE DES TIREURS'!D$74:D$244,'FEUILLE D''INSCRIPTION'!S157)","v":0},null,null,null,{"$f":"COUNTIFS($S$7:$S$181,S157)","v":36},1,1,null,1]
[null,null,null,null,null,{"$f":"INDEX('LISTE DES TIREURS'!B$74:B$244,'FEUILLE D''INSCRIPTION'!S158)","v":0},{"$f":"INDEX('LISTE DES TIREURS'!C$74:C$244,'FEUILLE D''INSCRIPTION'!S158)","v":0},{"$f":"INDEX('FEUILLE D''INSCRIPTION'!U$7:U$15,'FEUILLE D''INSCRIPTION'!T158)","v":0},{"$f":"INDEX('LISTE DES TIREURS'!G$8:G$82,'FEUILLE D''INSCRIPTION'!V158)","v":0},{"$f":"INDEX('LISTE DES TIREURS'!F$8:F$82,'FEUILLE D''INSCRIPTION'!V158)","v":0},"","","",{"$f":"INDEX('LISTE DES TIREURS'!D$74:D$244,'FEUILLE D''INSCRIPTION'!S158)","v":0},null,null,null,{"$f":"COUNTIFS($S$7:$S$181,S158)","v":36},1,1,null,1]
[null,null,null,null,null,{"$f":"INDEX('LISTE DES TIREURS'!B$74:B$244,'FEUILLE D''INSCRIPTION'!S159)","v":0},{"$f":"INDEX('LISTE DES TIREURS'!C$74:C$244,'FEUILLE D''INSCRIPTION'!S159)","v":0},{"$f":"INDEX('FEUILLE D''INSCRIPTION'!U$7:U$15,'FEUILLE D''INSCRIPTION'!T159)","v":0},{"$f":"INDEX('LISTE DES TIREURS'!G$8:G$82,'FEUILLE D''INSCRIPTION'!V159)","v":0},{"$f":"INDEX('LISTE DES TIREURS'!F$8:F$82,'FEUILLE D''INSCRIPTION'!V159)","v":0},"","","",{"$f":"INDEX('LISTE DES TIREURS'!D$74:D$244,'FEUILLE D''INSCRIPTION'!S159)","v":0},null,null,null,{"$f":"COUNTIFS($S$7:$S$181,S159)","v":36},1,1,null,1]
[null,null,null,null,null,{"$f":"INDEX('LISTE DES TIREURS'!B$74:B$244,'FEUILLE D''INSCRIPTION'!S160)","v":0},{"$f":"INDEX('LISTE DES TIREURS'!C$74:C$244,'FEUILLE D''INSCRIPTION'!S160)","v":0},{"$f":"INDEX('FEUILLE D''INSCRIPTION'!U$7:U$15,'FEUILLE D''INSCRIPTION'!T160)","v":0},{"$f":"INDEX('LISTE DES TIREURS'!G$8:G$82,'FEUILLE D''INSCRIPTION'!V160)","v":0},{"$f":"INDEX('LISTE DES TIREURS'!F$8:F$82,'FEUILLE D''INSCRIPTION'!V160)","v":0},"","","",{"$f":"INDEX('LISTE DES TIREURS'!D$74:D$244,'FEUILLE D''INSCRIPTION'!S160)","v":0},null,null,null,{"$f":"IF(S160<=1,\"\",COUNTIFS($S$7:$S$181,S160))","v":""},1,1,null,1]
[null,null,null,null,null,{"$f":"INDEX('LISTE DES TIREURS'!B$74:B$244,'FEUILLE D''INSCRIPTION'!S161)","v":0},{"$f":"INDEX('LISTE DES TIREURS'!C$74:C$244,'FEUILLE D''INSCRIPTION'!S161)","v":0},{"$f":"INDEX('FEUILLE D''INSCRIPTION'!U$7:U$15,'FEUILLE D''INSCRIPTION'!T161)","v":0},{"$f":"INDEX('LISTE DES TIREURS'!G$8:G$82,'FEUILLE D''INSCRIPTION'!V161)","v":0},{"$f":"INDEX('LISTE DES TIREURS'!F$8:F$82,'FEUILLE D''INSCRIPTION'!V161)","v":0},"","","",{"$f":"INDEX('LISTE DES TIREURS'!D$74:D$244,'FEUILLE D''INSCRIPTION'!S161)","v":0},null,null,null,"",1,1,null,1]
[]
[]
[]
[]
[]
[]
[]
[]
[]
[]
[]
[]
[]
[]
[]
[]
[]
[]
[]
[]
[]
[]
[]
[]
[]
[]
[]
[]
[]
[]
[]
[]
[]
[]
[]
[]
[]
[]
[]
[]
[]
[]
[]
[]
[]
[]
[]
[]
[]
[]
[]
[]
[]
[]
[]
[]
[]
[]
[]
[]
[]
[]
[]
[]
[]
[]
[]
[]
[]
[]
[]
[]
[]
[]
[]
[]
[]
[]
[]
[]
[]
[]
[]
[]
[]
[]
[]
[]
[]
[]
[]
[]
[]
[]
[]
[]
[]
[]
[]
[]
[]
[]
[]
[]
[]
[]
[]
[]
[]
[]
[]
[]
[]
[]
[]
[]
[]
[]
[]
[]
[]
[]
[]
[]
[]
[]
[]
[]
[]
[]
[]
[]
[]
[]
[]
[]
[]
[]
[]
[]
[]
[]
[]
[]
[]
[]
[]
[]
[]
[]
[]
[]
[]
[]
[]
[]
[]
[]
[]
[]
[]
[]
[]
[]
[]
[]
[]
[]
[]
[]
[]
[]
[]
[]
[]
[]
[]
[]
[]
[]
[]
[]
[]
[]
[]
[]
[]
[]
[]
[]
[]
[]
[]
[]
[]
[]
[]
[]
[]
[]
[]
[]
[]
[]
[]
[]
[]
[]
[]
[]
[]
[]
[]
[]
[]
[]
[]
[]
[]
[]
[]
[]
[]
[]
[]
[]
[]
[]
[]
[]
[]
[]
[]
[]
[]
[]
[]
[]
[]
[]
[]
[]
[]
[]
[]
[]
[]
[]
[]
[]
[]
[]
[]
[]
[]
[]
[]
[]
[]
[]
[]
[]
[]
[]
[]
[]
[]
[]
[]
[]
[]
[]
[]
[]
[]
[]
[]
[]
[]
[]
[]
[]
[]
[]
[]
[]
[]
[]
[]
[]
[]
[]
[]
[]
[]
[]
[]
[]
[]
[]
[]
[]
[]
[]
[]
[]
[]
[]
[]
[]
[]
[]
[]
[]
[]
[]
[]
[]
[]
[]
[]
[]
[]
[]
[]
[]
[]
[]
[]
[]
[]
[]
[]
[]
[]
[]
[]
[]
[]
[]
[]
[]
[]
[]
[]
[]
[]
[]
[]
[]
[]
[]
[]
[]
[]
[]
[]
[]
[]
[]
[]
[]
[]
[]
[]
[]
[]
[]
[]
[]
[]
[]
[]
[]
[]
[]
[]
[]
[]
[]
[]
[]
[]
[]
[]
[]
[]
[]
[]
[]
[]
[]
[]
[]
[]
[]
[]
[]
[]
[null,null,null,null,null,null,null,null,null,null,null,null,null,null,null,null,null,null,null,1]
[]
[]
[]
[]
[]
[]
[]
[]
[]
[]
[]
[]
[]
[]
[]
[]
[]
[]
[]
[]
[]
[]
[]
[]
[]
[]
[]
[]
[]
[]
[]
[]
[]
[]
[]
[]
[]
[]
[]
[]
[]
[]
[]
[]
[]
[]
[]
[]
[]
[]
[]
[]
[]
[]
[]
[]
[]
[]
[]
[]
[]
[]
[]
[]
[]
[]
[]
[]
[]
[]
[]
[]
[]
[]
[]
[]
[]
[]
[]
[]
[]
[]
[]
[]
[]
[]
[]
[]
[]
[]
[]
[]
[]
[]
[]
[]
[]
[]
[]
[null,null,null,null,null,null,null,null,null,null,null,null,null,null,null,null,null,null,null,1]
[]
[]
[]
[]
[]
[]
[]
[]
[]
[]
[]
[]
[]
[]
[]
[]
[]
[]
[]
[]
[]
[]
[]
[]
[]
[]
[]
[]
[]
[]
[]
[]
[]
[]
[]
[]
[]
[]
[]
[]
[]
[]
[]
[]
[]
[]
[]
[]
[]
[]
[]
[]
[]
[]
[]
[]
[]
[]
[]
[]
[]
[]
[]
[]
[]
[]
[]
[]
[]
[]
[]
[]
[]
[]
[]
[]
[]
[]
[]
[]
[]
[]
[]
[]
[]
[]
[]
[]
[]
[]
[]
[]
[]
[]
[]
[]
[]
[]
[]
[]
[]
[]
[]
[]
[]
[]
[]
[]
[]
[]
[]
[]
[]
[]
[]
[]
[]
[]
[]
[]
[]
[]
[]
[]
[]
[]
[]
[]
[]
[]
[]
[]
[]
[]
[]
[]
[]
[]
[]
[]
[]
[]
[]
[]
[]
[]
[]
[]
[]
[]
[]
[]
[]
[]
[]
[]
[]
[]
[]
[]
[]
[]
[]
[]
[]
[]
[]
[]
[]
[]
[]
[]
[]
[]
[]
[]
[]
[]
[]
[]
[]
[]
[]
[]
[]
[]
[]
[]
[]
[]
[]
[]
[]
[]
[]
[]
[]
[]
[]
[]
[]
[]
[]
[]
[]
[]
[]
[]
[]
[]
[]
[]
[]
[]
[]
[]
[]
[]
[]
[]
[]
[]
[]
[]
[]
[]
[]
[]
[]
[]
[]
[]
[]
[]
[]
[]
[]
[]
[]
[]
[]
[]
[]
[]
[]
[]
[]
[]
[]
[]
[]
[]
[]
[]
[]
[]
[]
[]
[]
[]
[]
[]
[]
[]
[]
[]
[]
[]
[]
[]
[]
[]
[]
[]
[]
[]
[]
[]
[]
[]
[]
[]
[]
[]
[]
[]
[]
[]
[]
[]
[]
[]
[]
[]
[]
[]
[]
[]
[]
[]
[]
[]
[]
[]
[]
[]
[]
[]
[]
[]
[]
[]
[]
[]
[]
[]
[]
[]
[]
[]
[]
[]
[]
[]
[]
[]
[]
[]
[]
[]
[]
[]
[]
[]
[]
[]
[]
[]
[]
[]
[]
[]
[]
[]
[]
[]
[]
[]
[]
[]
[]
[]
[]
[]
[]
[]
[]
[]
[]
[]
[]
[]
[]
[]
[]
[]
[]
[]
[]
[]
[]
[]
[]
[null,null,null,null,null,null,null,null,null,null,null,null,null,null,null,null,null,null,null,null,null,2]

{"sheet":"MODE D'EMPLOI","index":2,"n_rows":0,"n_cols":0,"rows_kept":0,"cut":false,"hidden":false,"merged":[]}

{"sheet":"Tireurs","index":3,"n_rows":134,"n_cols":12,"rows_kept":134,"cut":false,"hidden":false,"merged":[]}
["Nom","Prénom","Année","Calibre","Téléphone","Natel","Mail ou courrier","2017-08-23","2017-08-30","2017-09-01","seul"]
["Adam","Olivier",1993,5.6,"-","-","mail",null,null,null,null,{"$f":"SUM(H2:K2)","v":0}]
["Akcoeltekin","Namik",1979,5.6,"-","-","mail",null,null,null,null,0]
["Akrout","Samir",1974,5.6,"-","-","mail",null,null,null,null,0]
["Altinier","Benoit",1983,5.6,"-","-","mail",null,null,null,null,0]
["Ammann","Dora",1984,5.6,"-","-","mail",null,null,null,null,0]
["Arias","José",1971,5.6,"-","-","mail",null,null,null,null,0]
["Ascensao Nunes Andrade","Bruno Macel",1974,5.6,"-","-","courrier",null,null,null,null,0]
["Aslan","Yunus Emere",1996,5.6,"-","-","courrier",null,null,null,null,0]
["Auderset ","Gregory",1993,5.6,"-","-","mail",null,null,null,null,0]
["Baciu","Adrian",1955,5.6,"-","-","courrier",null,null,null,null,0]
["Barras","Valentin",1996,5.6,"-","-",null,null,null,null,null,0]
["Barth","Daniel",1962,5.6,"-","078 / 607 28 97",null,null,null,null,null,0]
["Basset ","Christian",1956,5.6,"-","-","courrier",null,null,null,null,0]
["Baudois","Julien",1985,5.6,"-","078 / 722 63 58","mail",null,null,null,null,0]
["Beaud","Claude",1957,5.6,"-","-","mail",null,null,null,null,0]
["Benoit ","Jean-Romain",1970,5.6,null,null,"mail",null,null,null,null,0]
["Berger","Jean-Philippe",1975,5.6,"-","-","mail",null,null,null,null,0]
["Blanc","Marcel",1956,5.6,"-","079 / 614 67 91","mail",null,null,null,null,0]
["Boichat","Michel",1952,5.6,"-","079 / 259 35 06","mail",null,null,null,null,0]
["Bonnet","Julien",1984,5.6,"-","-","mail",null,null,null,null,0]
["Boschung","Elias",1988,5.6,"-","-","mail",null,null,null,null,0]
["Brülhart","Matthieu",1985,5.6,"-","079 / 547 98 29","mail",null,null,null,null,0]
["Carrel","Johann",1980,5.6,"-","-","mail",null,null,null,null,0]
["Castro","Paulo",1974,5.6,"-","-","courrier",null,null,null,null,0]
["Cetinjanin","Daniel",1984,5.6,"-","078 / 620 43 16","mail",null,null,null,null,0]
["Chalabi","David",1986,5.6,null,null,"courrier",null,null,null,null,0]
["Colheo Moreira ","Helder Manuel",1986,5.6,null,null,"Courrier",null,null,null,null,0]
["Corboz","Gabriel",1986,5.6,"-","-","mail",null,null,null,null,0]
["Currat","Jean-Michel",1962,5.6,"-","079 / 408 55 45","mail",null,null,null,null,0]
["Dabouz Mohamed","Nazim",1982,5.6,"-","-","mail",null,null,null,null,0]
["Daniel","Yvon",null,5.6,"-","-",null,null,null,null,null,0]
["De Almeida","José",1973,5.6,"-","-",null,null,null,null,null,0]
["Delacombaz","Maude",1989,5.6,"-","079 / 791 16 86","mail",null,null,null,null,0]
["Delas ","Mathieu",1991,5.6,null,null,"mail",null,null,null,null,0]
["Dobroes Texeira","Nuno",1979,5.6,"-","-","courrier",null,null,null,null,0]
["Doughty Davis","Gregory",1957,5.6,null,null,"mail",null,null,null,null,0]
["Dubey","Vincent",1982,5.6,"-","076 / 433 53 51","courrier",null,null,null,null,0]
["Dupont","Michel",1969,5.6,"-","-","mail",null,null,null,null,0]
["Egger","Sylvain",1988,5.6,"-","-","mail",null,null,null,null,0]
["Eliseev","Oleg",1984,5.6,"-","076 / 822 18 47","mail",null,null,null,null,0]
["Ferreira","Jaime",1964,5.6,"-","-",null,null,null,null,null,0]
["Ferreira De Castro","Paulo Jorge",1975,5.6,"-","-",null,null,null,null,null,0]
["Fichera","Alessandro",1978,5.6,"-","-","mail",null,null,null,null,0]
["Fongang Temgoua","Alain",1974,5.6,"-","-","courrier",null,null,null,null,0]
["Forrer","Alex",1978,5.6,"-","-",null,null,null,null,null,0]
["Fromaget","Raoul",1982,5.6,"-","079 / 345 93 91","mail",null,null,null,null,0]
["Fuga","Rexhep",1993,5.6,"-","079 / 347 93 61","courrier",null,null,null,null,0]
["Gago Da Silva Cruz","Rui Jorge",1973,5.6,"-","-","courrier",null,null,null,null,0]
["Galland","Gilles",1956,5.6,"-","-","mail",null,null,null,null,0]
["Galland","Maxime",1987,5.6,"-","-","mail",null,null,null,null,0]
["Genoud","Didier",1981,5.6,"-","-","mail",null,null,null,null,0]
["Gloriant","Antoine",1988,5.6,"-","-","courrier",null,null,null,null,0]
["Goncalves Duarte","Silvio Miguel",1980,5.6,"-","-","courrier",null,null,null,null,0]
["Gonçalves Martins","Joaquim",1979,7.5,"-","-",null,null,null,null,null,0]
["Grangier","Pierre",1949,5.6,"026 / 912 57 19","079 / 232 65 48","pierre.grangier@websud.ch",null,null,null,null,0]
["Heintz","Simon",1987,5.6,"-","-","mail",null,null,null,null,0]
["Heinzl","Michael",1972,5.6,"-","-","mail",null,null,null,null,0]
["Imperiale","Filomene",1971,5.6,"-","-","mail",null,null,null,null,0]
["John","Maria",1986,5.6,"-","-","mail",null,null,null,null,0]
["Karaoglan","Mehmet",null,5.6,"-","-","courrier",null,null,null,null,0]
["Kehren","Isabelle",1996,5.6,"-","079 / 945 07 97","mail",null,null,null,null,0]
["Khenfar","Amar",1975,5.6,"-","-","courrier",null,null,null,null,0]
["Klein","Thierry",1975,5.6,"-","079 / 845 33 93","courrier",null,null,null,null,0]
["Kuenzli","Cédric",1976,5.6,"-","-","mail",null,null,null,null,0]
["Kurtaj","Gazmen",1976,5.6,"-","078 / 605 63 56","mail",null,null,null,null,{"$f":"SUM(H66:K66)","v":0}]
["Leonard","Damien",1993,5.6,"-","-","mail",null,null,null,null,0]
["Marchon","Philippe",1962,5.6,"-","-","mail",null,null,null,null,0]
["Martins","José",1973,5.6,"-","-","courrier",null,null,null,null,0]
["Martins Marques","Filipe",1986,5.6,"-","076 / 697 51 20","courrier",null,null,null,null,0]
["Meige","Timothée",1987,5.6,"-","079 / 725 39 85","courrier",null,null,null,null,0]
["Menoud","Sonja",1952,5.6,"-","079 / 544 46 50","sms",null,null,null,null,0]
["Menoud","Sébastien",1974,5.6,"-","079 / 206 93 08","mail",null,null,null,null,0]
["Moinet","Léo",1994,5.6,"-","079 / 456 78 06","courrier",null,null,null,null,0]
["Monney","Eric",1995,5.6,"-","077 / 402 85 66","courrier",null,null,null,null,0]
["Morisset","Alexandre",1974,7.5,"-","079 / 418 02 91","mail",null,null,null,null,0]
["Moura","Olivier",1965,5.6,null,null,"Courrier",null,null,null,null,0]
["Mulot","Gwladys",1991,5.6,"-","-","mail",null,null,null,null,0]
["Njoh","Jean-Robert",1980,5.6,"-","079 / 746 07 40","courrier",null,null,null,null,0]
["Nuredini","Driton",1990,5.6,"-","079 / 391 23 42","courrier",null,null,null,null,0]
["Pacchiana","Alexis",1960,5.6,"-","076 / 721 80 95","courrier",null,null,null,null,0]
["Pauchard","Bernard",1990,5.6,"-","-","mail",null,null,null,null,0]
["Pereira Dias","Carlos Manuel",1980,5.6,"-","-",null,null,null,null,null,0]
["Petitjean","Brice",1990,5.6,"-","-","mail",null,null,null,null,0]
["Picard","Michael",1989,5.6,"-","-","mail",null,null,null,null,0]
["Piller","Stéphane",1979,5.6,"-","079 / 755 73 67","mail",null,null,null,null,0]
["Progin","Jérémy",1989,5.6,"-","-",null,null,null,null,null,0]
["Puran","Bakir",1980,5.6,"-","-","mail",null,null,null,null,0]
["Python","Roland",1974,5.6,"-","-","mail",null,null,null,null,0]
["Pythoud","Pascal",1977,5.6,"-","079 / 750 68 04","mail",null,null,null,null,0]
["Raboud","Claudine",1981,5.6,"-","078 / 714 88 59","mail",null,null,null,null,0]
["Reibel","Pierre-Vincent",1980,5.6,"-","-",null,null,null,null,null,0]
["Rodriges Cardoso","Mauro Alfonso",null,5.6,"-","-",null,null,null,null,null,0]
["Roux ","Stefan",1964,7.5,"-","-","mail",null,null,null,null,0]
["Sabathie","Cyrille",1984,5.6,"-","-","mail",null,null,null,null,0]
["Scheiwe","Clemens",1990,5.6,"-","-","mail",null,null,null,null,0]
["Schmit","Bruno",1978,5.6,"-","-","mail",null,null,null,null,0]
["Schnarrenberger ","Elio",1991,5.6,null,null,"mail",null,null,null,null,0]
["Soulier","Pierre",1989,5.6,"-","-","mail",null,null,null,null,0]
["Spinelli","Sophie",1980,5.6,"-","-","mail",null,null,null,null,0]
["Stehlin","Mathieu",1994,5.6,"-","-","courrier",null,null,null,null,0]
["Stevanovic","Sladjan",1983,5.6,"-","-",null,null,null,null,null,0]
["Tercier","Novella",null,null,"-","-","mail",null,null,null,null,0]
["Texeira","Victor",1985,5.6,"-","-","courrier",null,null,null,null,0]
["Touchefeu","Thibaut",1986,5.6,"-","-",null,null,null,null,null,0]
["Turrian","Jean-Daniel",1988,5.6,"-","-","courrier",null,null,null,null,0]
["Tushi","Bekim",1986,5.6,"-","076 / 386 63 03","courrier",null,null,null,null,0]
["Ünalan","Ümit",1981,5.6,"-","078 / 862 52 76","mail",null,null,null,null,0]
["Utz","Martial",1971,5.6,"-","-","mail",null,null,null,null,0]
["Videira","Luis",1989,5.6,"-","-","courrier",null,null,null,null,0]
["Vonlanthen","Béat",1983,5.6,"-","079 / 752 88 67","mail",null,null,null,null,0]
["Wesemann","Knut",1985,5.6,"-","-","mail",null,null,null,null,0]
["Winkler","Andreas",1982,5.6,"-","-","mail",null,null,null,null,0]
["Winkworth","James",1996,5.6,null,null,"Courrier",null,null,null,null,0]
["Wyssmueller","Alain",1992,5.6,"-","077 / 420 36 30","mail",null,null,null,null,0]
["Yardimci","Bulent",1979,5.6,"-","-",null,null,null,null,null,0]
["Zbinden","Carole",1979,5.6,"-","-","mail",null,null,null,null,0]
["Vielle","Vincent",1992,5.6,null,null,"mail",null,null,null,null,0]
["Li","Zhi",1989,5.6,null,null,"mail",null,null,null,null,0]
["Zuendorf","Eckehard",1970,5.6,null,null,"mail",null,null,null,null,{"$f":"SUM(H120:K120)","v":0}]
[null,null,null,null,null,null,null,null,null,null,null,{"$f":"SUM(H121:K121)","v":0}]
[null,null,null,null,null,null,null,{"$f":"SUM(H2:H121)","v":0},{"$f":"SUM(I2:I121)","v":0},0,0,{"$f":"SUM(L2:L121)","v":0}]
[null,null,null,null,null,null,null,null,null,null,{"$f":"SUM(H122:K122)","v":0}]
[]
[null,null,null,null,"Nbre:","Coût:"]
["Cotisation annuelle par entreprise:",null,null,30,1,{"$f":"SUM(D126*E126)","v":30}]
[]
["Paritcipation par tireur",null,null,30,78,{"$f":"SUM(D128*E128)","v":2340}]
["Total:",null,null,null,null,{"$f":"SUM(F126+F128)","v":2370}]
[]
[]
["Bulle, le 24.07.2017 "]
[]
["S. Menoud "]